Cogmind - Beta 10.2 @@@ ROGUE MODE // 2021.09.11 @ 18:52:27 Player: Cracklepappy Result: Destroyed by H-88 Terminator with KE Penetrator Performance ------------- Evolutions (8) 4000 Regions Visited (33) 6600 Robots Destroyed (551) 2755 Value Destroyed (26848) 26848 Prototype IDs (102) 2040 Alien Tech Used (6) 1200 Bonus (9622) 9622 TOTAL SCORE: 53065 Bonus ------- High Alert Combat Kills 5070 Follower Combat Kills 897 Network Hubs Disabled 200 Aligned with FarCom 300 Met Data Miner 300 Destroyed Z-Imprinter 1000 Triggered Deep Caves Wall 500 Exposed GOLEM Chamber 500 Met Zhirov 300 Hacked Protovariant 500 Scanned by Researcher 1000 Pursued by Intercept 500 Friendly Fire -1445 Cogmind --------- Core Integrity 0/1450 Matter 0/300 Energy 99/100 System Corruption 67% Temperature Cool (0) Movement Core (50) Location -2/Section 7 Parts ------- > --- POWER (2) -------- (None) > --- PROPULSION (4) --- (None) > --- UTILITY (15) ----- (None) > --- WEAPON (3) ------- (None) > --- INVENTORY (4) ---- Transdimensional Reconstructor LRC Energy Well Omega Cannon Peak State ------------ > --- POWER ------------ Quantum Reactor Light Quantum Reactor > --- PROPULSION ------- Biometal Medium Treads Biometal Medium Treads Centrium Heavy Treads > --- UTILITY ---------- Advanced Coolant Injector Medium Storage Unit Large Storage Unit Large Storage Unit High-capacity Storage Unit Long-range Terrain Scanner Advanced Terrain Scan Processor Advanced Transmission Jammer Heavy Regenerative Plating SHELL Armor Improved Hacking Suite Advanced Hacking Suite > --- WEAPON ----------- Compact HERF Cannon Omega Cannon > --- INVENTORY -------- Micro Fission Core Micro Fission Core Light Quantum Reactor Improved Q-thruster Improved Q-thruster Improved Q-thruster Improved Q-thruster Zionite Biocell High-capacity Matter Pod Zionite Metafield Generator Advanced Sensor Array Improved Melee Analysis Suite Cloak of Protection 8R-AWN's Armor/EX Advanced Shield Generator Advanced Force Field Transdimensional Reconstructor Compact Mass Driver Scatter Rocket Array Phasing Sabre Portable AFG [Rating: 186] Favorites ----------- Power Antimatter Reactor Engine Heavy Ion Engine Power Core Reinforced Fission Core Reactor Antimatter Reactor Propulsion Light Treads Treads Light Treads Leg Assembled Alloy Leg Wheel Compact Wheel Hover Unit Cooled Airjet Flight Unit Makeshift Flight Unit Utility High-capacity Storage Unit Device GOLEM Unit Storage High-capacity Storage Unit Processor Advanced Targeting Computer Hackware Improved Hacking Suite Protection Hardened Medium Armor Plating Artifact Matter Drive Weapon Assembled Focal Cannon Energy Gun Advanced Variable Charge Gun Energy Cannon Assembled Focal Cannon Ballistic Gun Heavy Assault Rifle Ballistic Cannon Compact Mass Driver Launcher Advanced EMP Blaster Slashing Weapon Phasing Sabre Piercing Weapon Heavy Pick Build | -11 -10 -10 -9 -9 -9 -8 -8 -8 -7 -7 -7 -7 -6 -6 -6 -6 -6 -6 -5 -5 -5 -5 -5 -4 -4 -4 -4 -4 -4 -3 -2 -2 -2 ------- Run | Scr Mat Min Mat Min Exi Min Mat Sto Fac Low Low Dat Pro Fac Low Low Zio Dee Pro Fac Upp Upp Zhi Pro Fac Ext Cet Arc Hub Res Res Tes Sec Slots Evolved 16 | . . . 2 . . . 2 . 2 . . . . 2 . . . . . 2 . . . . 2 . . . . 2 2 . . Power 1 | . . . . . . . . . . . . . . . . . . . . 1 . . . . . . . . . . . . . Propulsion 2 | . . . . . . . 1 . . . . . . 1 . . . . . . . . . . . . . . . . . . . Utility 12 | . . . 2 . . . 1 . 2 . . . . 1 . . . . . 1 . . . . 1 . . . . 2 2 . . Weapon 1 | . . . . . . . . . . . . . . . . . . . . . . . . . 1 . . . . . . . . Parts Attached 597 | 7 9 2 25 14 8 2 21 45 35 15 . . 20 55 9 1 26 34 1 17 9 7 3 9 27 27 8 2 14 43 16 47 39 Power 43 | 1 2 1 2 1 . . 3 3 1 1 . . 2 3 . . . 1 . 2 . . . 1 1 5 . . . 4 2 3 4 Engine 14 | 1 1 . 2 1 . . 2 3 1 1 . . 1 1 . . . . . . . . . . . . . . . . . . . Core 12 | . 1 1 . . . . 1 . . . . . 1 2 . . . 1 . 1 . . . 1 1 1 . . . . . . 1 Reactor 17 | . . . . . . . . . . . . . . . . . . . . 1 . . . . . 4 . . . 4 2 3 3 Propulsion 117 | 2 3 . 3 3 1 . 9 17 7 6 . . 4 12 . . 6 5 . 3 . . . . 5 8 3 . 2 1 3 4 10 Treads 92 | 1 3 . 3 3 1 . 9 17 6 6 . . 4 4 . . 4 5 . 3 . . . . 2 . 3 . 1 1 3 4 9 Leg 15 | . . . . . . . . . . . . . . 4 . . . . . . . . . . 3 8 . . . . . . . Wheel 5 | 1 . . . . . . . . . . . . . 4 . . . . . . . . . . . . . . . . . . . Hover 1 | . . . . . . . . . 1 . . . . . . . . . . . . . . . . . . . . . . . . Flight 4 | . . . . . . . . . . . . . . . . . 2 . . . . . . . . . . . 1 . . . 1 Utility 254 | 2 2 . 8 1 6 . 3 5 7 5 . . 6 20 9 1 16 17 . 12 9 7 2 7 17 7 2 2 12 33 5 20 11 Device 110 | . . . . . 2 . . . 3 2 . . 2 7 7 1 6 5 . 7 6 3 1 5 5 3 . . 7 19 3 11 5 Storage 38 | 1 2 . 2 . 2 . 1 2 . . . . . . . . 4 2 . 2 . 1 . . 3 2 . . . 7 1 5 1 Processor 11 | 1 . . . . . . 1 1 1 1 . . . 1 1 . 1 1 . . . . . . . . . . 1 . 1 . . Hackware 6 | . . . . . . . . . . . . . . 4 . . . . . . . . . . . . . 1 . 1 . . . Protection 88 | . . . 6 1 2 . 1 2 3 2 . . 4 8 1 . 5 9 . 3 3 3 1 2 9 2 2 1 4 6 . 4 4 Artifact 1 | . . . . . . . . . . . . . . . . . . . . . . . . . . . . . . . . . 1 Weapon 183 | 2 2 1 12 9 1 2 6 20 20 3 . . 8 20 . . 4 11 1 . . . 1 1 4 7 3 . . 5 6 20 14 Energy Gun 15 | 1 1 1 3 . . . . 1 . . . . . . . . . . . . . . . . . 1 1 . . . 1 1 4 Energy Cannon 29 | . . . 1 . . . . . . . . . . 3 . . 1 3 . . . . . . . . . . . . 5 14 2 Ballistic Gun 62 | 1 . . 4 5 1 2 5 10 11 . . . 4 12 . . 2 1 . . . . . . . . 2 . . 1 . . 1 Ballistic Cannon 7 | . . . . . . . 1 . . . . . . . . . . . . . . . . . . . . . . . . 2 4 Launcher 50 | . 1 . 3 3 . . . 4 9 2 . . 3 3 . . . 3 1 . . . . 1 4 4 . . . 3 . 3 3 Special Weapon . | . . . . . . . . . . . . . . . . . . . . . . . . . . . . . . . . . . Impact Weapon . | . . . . . . . . . . . . . . . . . . . . . . . . . . . . . . . . . . Slashing Weapon 19 | . . . 1 1 . . . 5 . 1 . . 1 1 . . 1 4 . . . . 1 . . 2 . . . 1 . . . Piercing Weapon 1 | . . . . . . . . . . . . . . 1 . . . . . . . . . . . . . . . . . . . Special Melee Weapon . | . . . . . . . . . . . . . . . . . . . . . . . . . . . . . . . . . . Unidentified Prototypes 36 | . . . . . 2 . 1 4 1 1 . . . . . . 2 5 . . . . 1 . 1 . 4 . 1 . . 8 5 Parts Lost 134 | . 3 1 6 10 1 . 6 4 6 4 . . 5 14 . . . 5 . . . . . 7 10 13 1 . 2 4 4 5 23 Power 13 | . . 1 . 1 . . 1 1 . . . . 1 1 . . . . . . . . . 1 1 3 . . . . . . 2 Propulsion 42 | . 2 . 1 3 1 . 3 1 2 3 . . 3 6 . . . 2 . . . . . 4 1 3 . . . . 2 . 5 Utility 43 | . . . 2 1 . . 2 1 1 1 . . . 5 . . . 2 . . . . . . 4 4 1 . 1 2 . 4 12 Weapon 36 | . 1 . 3 5 . . . 1 3 . . . 1 2 . . . 1 . . . . . 2 4 3 . . 1 2 2 1 4 Highest Loss Streak 19 | . 3 1 4 7 1 . 4 2 2 4 . . 4 3 . . . 4 . . . . . 7 3 7 1 . 1 2 2 2 19 Average Slot Usage (%) 92 | . 99 98 98 99 96 100 95 99 99 97 100 100 99 91 100 100 94 95 93 93 94 94 94 84 88 89 91 90 89 86 90 83 60 Engine 2 | . 5 . 9 10 11 11 7 6 7 7 7 7 4 3 . . . . . . . . . . . . . . . . . . . Core 2 | . 8 12 1 . . . . 2 . . . . 1 2 6 6 6 6 6 4 5 5 5 6 1 . . . . . . . 1 Reactor 2 | . . . . . . . . . . . . . . . . . . . . 4 5 5 5 2 4 6 10 10 10 8 7 8 4 Treads 17 | . 27 28 22 21 22 22 25 26 22 20 21 21 20 5 25 25 22 24 25 22 22 22 22 12 5 . 6 10 9 9 8 9 8 Leg 2 | . . . . . . . . . . . . . . 9 . . . . . . . . . 4 12 19 6 . . . . . . Device 5 | . . . . . . . . . 4 1 7 7 5 4 5 6 6 3 6 10 8 10 10 9 7 8 7 . 3 11 12 14 9 Storage 24 | . 26 28 32 33 29 22 25 27 30 29 28 28 28 25 25 25 22 25 25 22 22 22 22 22 24 25 25 25 23 18 21 18 13 Processor 12 | . 1 . . . . . 5 9 15 14 14 14 14 12 25 25 19 18 18 16 16 16 16 16 15 15 15 15 15 13 14 11 3 Hackware 2 | . . . . . . . . . . . . . . 8 . . . . . . . . . . . . . 4 5 8 8 8 4 Protection 4 | . . . 10 10 14 22 12 7 2 5 7 7 7 3 . . 2 3 . . 2 . . 1 2 1 6 10 7 . 4 3 6 Energy Cannon 5 | . . . . . . . . . . . . . . . 12 12 8 6 11 11 11 11 10 8 14 8 5 5 5 9 6 7 1 Ballistic Gun 5 | . 14 14 18 21 9 22 17 14 5 . . . 4 10 . . . 1 . . . . . . . . 3 5 5 . . . . Launcher 1 | . 4 9 . . . . . 1 9 13 7 7 5 . . . . 2 . . . . . . . 1 2 . . . 4 . . Slashing Weapon 1 | . . . . . 9 . . 1 . . 7 7 3 . . . 2 1 . . . . . . . 2 . . . 1 . . . Naked Turns 188 | . . . . . . . . . . . . . . . . . . . . . . . . . . . . . . . . . 188 Heaviest Build 208 | 11 26 26 54 54 101 94 126 148 158 158 155 155 169 172 156 153 173 171 164 184 184 184 184 184 207 184 167 167 166 170 177 208 195 Greatest Support 160 | 16 40 40 40 40 40 40 60 60 60 68 60 60 63 98 98 98 122 111 111 111 111 111 111 111 102 105 160 160 160 160 160 155 155 Greatest Overweight (x) 54 | . . . 1 1 2 2 2 2 3 3 2 2 2 52 1 1 1 2 1 1 1 1 1 5 7 3 2 54 2 1 1 1 2 Average Overweight (x) 1 | . . . . . 1 2 1 1 2 2 2 2 2 2 1 1 . 1 1 1 1 1 1 1 1 1 1 11 . . . . . Largest Inventory Capacity 36 | 6 12 12 18 18 26 20 28 36 36 36 36 36 36 36 36 36 36 36 34 34 34 34 34 34 34 36 32 32 32 32 28 28 28 Average Capacity 30 | 5 11 12 17 18 23 20 26 28 36 36 36 36 36 36 36 36 32 34 34 34 34 34 34 34 33 32 32 32 32 29 28 27 23 Most Carried 36 | 6 12 12 18 18 20 19 28 34 36 36 36 36 36 36 36 36 36 36 34 34 34 34 34 34 34 32 32 32 32 32 28 28 28 Average Carried 29 | 4 10 11 17 16 16 18 25 28 33 35 36 36 35 35 35 35 30 33 33 33 33 34 33 33 33 31 31 32 31 28 22 26 21 Final Capacity 36 | 6 12 12 18 18 20 20 28 36 36 36 36 36 36 36 36 36 36 34 34 34 34 34 34 34 32 32 32 32 32 28 28 28 4 Final Carried 36 | 6 10 12 18 11 20 18 28 32 35 36 36 36 36 36 36 36 36 34 34 34 34 34 34 34 32 32 32 32 32 16 26 25 4 Class Distribution -------------------- 47% | Hauler-Mutant 22% | Hauler-Golem 12% | Scavenger-Mutant 7% | Scavenger-Tank 7% | Mutant Dominant Class ---------------- Mutant | -10/Materials Mutant | -10/Mines Scavenger-Mutant | -9/Materials Scavenger-Mutant | -9/Mines Hauler-Mutant | -9/Exiles Hauler-Mutant | -8/Mines Hauler-Mutant | -8/Materials Hauler-Mutant | -8/Storage Hauler-Mutant | -7/Factory Hauler-Mutant | -7/Lower Caves Hauler-Mutant | -7/Lower Caves Hauler-Mutant | -7/Data Miner Hauler-Mutant | -6/Proximity Caves Hauler-Mutant | -6/Factory Hauler-Mutant | -6/Lower Caves Hauler-Mutant | -6/Lower Caves Hauler-Mutant | -6/Zion Hauler-Mutant | -6/Deep Caves Hauler-Golem | -5/Proximity Caves Hauler-Golem | -5/Factory Hauler-Golem | -5/Upper Caves Hauler-Golem | -5/Upper Caves Hauler-Golem | -5/Zhirov Hauler-Golem | -4/Proximity Caves Hauler-Golem | -4/Factory Hauler-Golem | -4/Extension Scavenger-Mutant | -4/Cetus Scavenger-Tank | -4/Archives Scavenger-Tank | -4/Hub_04(d) Hauler-Golem | -3/Research Hauler-Mutant | -2/Research Hauler-Mutant | -2/Testing Hauler-Mutant | -2/Section 7 Resources | -11 -10 -10 -9 -9 -9 -8 -8 -8 -7 -7 -7 -7 -6 -6 -6 -6 -6 -6 -5 -5 -5 -5 -5 -4 -4 -4 -4 -4 -4 -3 -2 -2 -2 ----------- Run | Scr Mat Min Mat Min Exi Min Mat Sto Fac Low Low Dat Pro Fac Low Low Zio Dee Pro Fac Upp Upp Zhi Pro Fac Ext Cet Arc Hub Res Res Tes Sec Matter Collected 13878 | 285 257 264 1001 210 317 32 884 1150 849 451 . . 331 1616 198 176 177 599 46 164 30 150 30 88 713 533 161 153 117 857 617 686 736 Remotely . | . . . . . . . . . . . . . . . . . . . . . . . . . . . . . . . . . . Salvage Created 31247 | 101 492 121 1274 425 126 43 1492 3008 1688 394 . . 1335 1771 141 . . 1720 384 400 131 327 229 529 3698 3758 339 215 784 1487 758 3020 1057 Parts 1340 | 4 32 6 84 26 6 8 80 143 73 17 . . 59 82 . . . 45 23 21 4 12 1 14 156 109 10 10 31 80 35 117 52 Haulers Intercepted 20 | . 2 . 5 . . . 1 6 2 . . . . . . . . . . 2 . . . . 1 1 . . . . . . . Recyclers Shooed 14 | . . . . . . . . . . . . . . 5 . . . . . 1 . . . . 2 4 . . 1 1 . . . Parts Field Recycled 15 | . . . . . . . . . . . . . . . . . 15 . . . . . . . . . . . . . . . . Retrieved Matter 339 | . . . . . . . . . . . . . . . . . 339 . . . . . . . . . . . . . . . . Parts Self-Destructed 81 | . . . . . . . . . . 11 . . 20 . . . . . 22 . 3 12 . 13 . . . . . . . . . Prevented 41 | . . . . . . . . . . 7 . . 34 . . . . . . . . . . . . . . . . . . . . Kills | -11 -10 -10 -9 -9 -9 -8 -8 -8 -7 -7 -7 -7 -6 -6 -6 -6 -6 -6 -5 -5 -5 -5 -5 -4 -4 -4 -4 -4 -4 -3 -2 -2 -2 ------- Run | Scr Mat Min Mat Min Exi Min Mat Sto Fac Low Low Dat Pro Fac Low Low Zio Dee Pro Fac Upp Upp Zhi Pro Fac Ext Cet Arc Hub Res Res Tes Sec Combat Hostiles Destroyed 453 | . 10 3 27 24 2 3 27 46 29 10 . . 21 18 . . . 20 10 4 1 5 . 8 50 34 3 2 9 21 9 37 20 Melee 11 | . . . 1 1 . . . . . . . . 3 . . . . 5 . . . . . . . 1 . . . . . . . Guns 145 | . 8 1 17 12 2 3 27 29 15 3 . . 2 14 . . . 1 . . . . . . . . . 2 4 1 . . 4 Cannons 127 | . . . . . . . . . . . . . . 1 . . . 2 5 4 1 5 . 6 43 9 . . 5 13 6 22 5 AOE 119 | . 2 2 9 11 . . . 15 8 5 . . 14 3 . . . 6 5 . . . . 2 5 11 . . . 7 . 6 8 Classes Destroyed 25 | 2 4 . 4 1 . . 2 3 1 . . . 1 . . . . 3 . . . . . . . 2 . . . . . 1 1 Worker 21 | . . . 2 . . . . 2 3 . . . . 2 . . . . . . . . . . 3 6 . . . 3 . . . Builder 13 | . . . . . . . 2 . 1 . . . . 1 . . . . . 1 . . . . 2 3 . . . 2 . . 1 Tunneler 6 | 2 . . . . . . . . 1 . . . . 1 . . . . . . . . . . . 2 . . . . . . . Hauler 20 | . 2 . 5 . . . 1 6 2 . . . . . . . . . . 2 . . . . 1 1 . . . . . . . Recycler 18 | 1 . . . . . . 1 1 . . . . . 6 . . . . . . . . . . 1 6 . . 1 1 . . . Mechanic 4 | . . . . . . . . 2 . . . . . . . . . . . . . . . . . 2 . . . . . . . Operator 6 | . 1 . . . . . . 2 . . . . . 2 . . . . . . . . . . . . . 1 . . . . . Watcher 19 | . 2 . 2 . . . . 2 1 . . . . 2 . . . . . . . . . . 2 1 1 . 1 2 1 2 . Swarmer 54 | . . . 6 4 . 3 3 4 4 7 . . 4 3 . . . . 5 . . . . . . 7 . . . . . . 4 Grunt 181 | . 10 3 11 8 . . 15 23 12 . . . 9 3 . . . . 4 . . 3 . 3 33 15 . . 3 6 . 18 2 Brawler 14 | . . . . . . . 2 2 1 . . . 3 . . . . . . . . 1 . 1 1 1 . . . . . 1 1 Duelist 16 | . . . 1 . . . 2 2 2 2 . . 2 . . . . . . . . . . . . . . . . 2 . 2 1 Protector 7 | . . . . . . . . 2 1 . . . . . . . . . . . . . . . 1 . . . . 1 . 1 1 Researcher 5 | . . . . . . . . . . . . . . . . . . . . . . . . . . . . . . . . 4 1 Sentry 60 | . . . 9 . . . 5 12 5 1 . . 1 4 . . . . . . 1 . . . 3 4 . 2 2 3 4 1 3 Demolisher 2 | . . . . . . . . . . . . . . . . . . . . . . . . . . 2 . . . . . . . Specialist 2 | . . . . . . . . . . . . . . . . . . . . . . . . . . 2 . . . . . . . Hunter 18 | . . . . . . . . 1 . . . . . 2 . . . . 1 1 . 1 . 2 2 2 . . . 2 . 4 . Programmer 56 | . . . . . . . . . 4 . . . 1 6 . . . . . 3 . . . 2 10 . . . 4 7 5 10 4 Q-Series 1 | . . . . . . . . . . . . . . . . . . . . . . . . . . . . . . . . . 1 Behemoth 2 | . . . . . . . . . . . . . 1 . . . . . . . . . . . . 1 . . . . . . . Cetus Guard 3 | . . . . . . . . . . . . . . . . . . . . . . . . . . . 3 . . . . . . Enhanced Grunt 1 | . . . . . . . . . . . . . 1 . . . . . . . . . . . . . . . . . . . . Tracker 2 | . . . . . . . . . . . . . . . . . . . . . . . . . . . . . . . . . 2 Combat Programmer 1 | . . . . . . . . . . . . . . . . . . . . . . . . . . . . . . . . . 1 Investigator 1 | . . . . . . . . . . . . . . . . . . . . . . . . . . . . . . . . 1 . Z-Light 7 | . . . . . . . . . . . . . . . . . . 7 . . . . . . . . . . . . . . . Decomposer 2 | . . . . . . . . . . . . . . . . . . . . . 2 . . . . . . . . . . . . Packrat 2 | . . . . . . . . . . . . . . . 2 . . . . . . . . . . . . . . . . . . Assembler 2 | . . . . . . . . . . . . . . . . . . 2 . . . . . . . . . . . . . . . Assembled 16 | . . . . 12 1 . . . . . . . . . . . . 3 . . . . . . . . . . . . . . . Golem 9 | . . . . . . . . . . . . . . . . . . 9 . . . . . . . . . . . . . . . Thug 5 | . . . . . . . . 2 . . . . . . . . . 1 . . . . . . . 1 1 . . . . . . Best Kill Streak 22 | 3 3 2 4 12 1 3 5 20 11 7 . . 8 9 . . . 5 5 3 1 3 . 3 9 22 4 3 3 8 3 13 7 Combat Bots Only 17 | . 2 2 4 12 1 3 4 17 10 7 . . 8 4 . . . 5 5 2 1 3 . 3 7 13 3 1 3 5 3 12 5 Max Kills in Single Turn 6 | 1 1 1 3 4 1 2 2 6 2 3 . . 3 2 1 . . 2 5 1 1 1 . 2 3 6 2 1 1 4 1 3 4 Gunslinging 1 | . . . . 1 . 1 . . . 1 . . . . . . . . . . . . . . . . . . . . . . . Exploded 5 | . 1 1 3 4 . . . 5 2 3 . . 3 2 . . . 2 5 . . . . 2 2 3 . . . 2 . 3 3 Melee 1 | . . . 1 1 . . . . . . . . 1 . . . . 1 . . . . . . . 1 . . . . . . . Uniques/NPCs Destroyed 2 | . . . . . 1 . . . . . . . . . . . . 1 . . . . . . . . . . . . . . . 8R-AWN (-9/Exiles) Z-Imprinter (-6/Deep Caves) Combat | -11 -10 -10 -9 -9 -9 -8 -8 -8 -7 -7 -7 -7 -6 -6 -6 -6 -6 -6 -5 -5 -5 -5 -5 -4 -4 -4 -4 -4 -4 -3 -2 -2 -2 -------- Run | Scr Mat Min Mat Min Exi Min Mat Sto Fac Low Low Dat Pro Fac Low Low Zio Dee Pro Fac Upp Upp Zhi Pro Fac Ext Cet Arc Hub Res Res Tes Sec Damage Taken 42889 | 24 735 54 1191 1377 294 38 2465 2125 1811 333 . . 1705 2740 347 . . 1772 201 482 46 116 . 1614 4389 3894 205 135 698 3109 602 2711 7676 Core 4472 | . 153 . 141 161 46 9 240 210 104 12 . . 240 236 67 . . 34 . 42 . . . 135 296 516 . . 18 418 35 184 1175 Absorbed by Shields 3295 | . . . . . . . . . . . . . . . . . . . . . . . . . . 22 . . . 323 626 1920 404 Reduced by Siege Mode 194 | . . . . . . . . . . . . . . . . . . . . . . . . . 43 . . 8 . 105 8 30 . Core Remaining (%) 50 | 100 . 38 . . . 10 . 18 . . . . 49 . . . . . 60 . . . . 82 . . . . 27 67 . . . Volleys Fired 1435 | 5 59 3 107 32 . 2 120 116 93 11 . . 31 123 3 . . 49 10 34 11 8 . 21 120 78 8 6 29 74 43 150 89 Largest 3 | 2 2 2 2 2 . 2 2 2 2 2 . . 2 2 2 . . 2 2 2 2 2 . 2 3 3 1 3 3 3 2 2 2 Hottest 240 | 60 60 85 105 46 . 46 50 72 72 72 . . 72 138 138 . . 138 50 50 50 50 . 50 75 96 46 140 140 96 240 240 150 Shots Fired 2591 | 10 115 6 205 58 28 4 235 229 169 22 . . 42 232 6 . . 85 17 49 22 16 . 38 281 129 8 15 62 130 59 204 115 Gun 1402 | 10 112 4 194 52 28 4 235 220 133 12 . . 21 217 . . . 21 . . . . . . . . . 9 33 18 4 . 75 Cannon 997 | . . . 2 . . . . . . . . . . 7 6 . . 50 16 49 22 16 . 37 273 96 . 6 29 100 55 200 33 Launcher 192 | . 3 2 9 6 . . . 9 36 10 . . 21 8 . . . 14 1 . . . . 1 8 33 8 . . 12 . 4 7 Special . | . . . . . . . . . . . . . . . . . . . . . . . . . . . . . . . . . . Kinetic 1259 | 5 59 3 166 52 28 4 235 220 133 12 . . 21 217 . . . 21 . . . . . . . . . 6 18 18 . . 41 Thermal 959 | . 53 1 30 . . . . . . . . . . 1 . . . 5 16 49 22 16 . 37 273 96 . 9 44 100 43 157 7 Explosive 48 | . 3 2 9 6 . . . . . . . . . . . . . 2 1 . . . . 1 5 . . . . 9 . 3 7 Electromagnetic 324 | 5 . . . . . . . 9 36 10 . . 21 14 6 . . 57 . . . . . . 3 33 8 . . 3 16 43 60 Robot Hit Streak 72 | 5 10 2 10 13 18 1 12 36 17 5 . . 19 18 2 . . 33 13 14 16 13 . 13 72 25 15 6 15 31 16 30 18 Robot Miss Streak 12 | 1 3 1 3 2 1 1 5 3 4 1 . . 1 4 1 . . 10 5 1 1 . . 6 3 2 1 1 1 2 3 5 12 Penetration Max 1 | . . . . . . . . . . . . . . 1 . . . . . . . . . . . . . . 1 . . . . Secondary Targets 9 | . . . . 2 . 1 1 3 1 1 . . . . . . . . . . . . . . . . . . . . . . . Max Gunslinging Chain 1 | . . . . 1 . 1 1 1 1 1 . . . . . . . . . . . . . . . . . . . . . . . Autonomous 28 | . . . . . 28 . . . . . . . . . . . . . . . . . . . . . . . . . . . . Shots Hit Robots 1918 | 6 79 2 137 46 26 2 168 190 126 16 . . 51 171 3 . . 98 14 22 9 11 3 29 211 95 4 13 36 102 40 125 83 Core Hits 1134 | 4 32 6 55 37 8 3 62 109 67 12 . . 43 80 2 . . 71 17 8 4 6 2 17 109 79 6 6 27 90 12 92 68 Critical Hits 25 | . 1 . . . 1 . . 4 3 . . . 1 3 . . . 1 . . . . . . . . . 4 1 3 . 3 . Critical Kills 6 | . . . . . . . . 1 1 . . . . 1 . . . . . . . . . . . . . 2 1 . . . . Critical Parts Destroyed 15 | . 1 . . . 1 . . 2 2 . . . 1 2 . . . . . . . . . . . . . . . 3 . 3 . Melee Attacks 155 | . . . 1 4 1 . . 14 . 2 . . 32 8 . . 45 38 . . . . 3 . . 4 . . . 3 . . . Impact . | . . . . . . . . . . . . . . . . . . . . . . . . . . . . . . . . . . Slashing 154 | . . . 1 4 1 . . 14 . 2 . . 32 7 . . 45 38 . . . . 3 . . 4 . . . 3 . . . Piercing 1 | . . . . . . . . . . . . . . 1 . . . . . . . . . . . . . . . . . . . Sneak Attacks 3 | . . . . . . . . . . . . . . . . . . . . . . . . . . 2 . . . 1 . . . Combat Hostiles . | . . . . . . . . . . . . . . . . . . . . . . . . . . . . . . . . . . Follow-up Attacks . | . . . . . . . . . . . . . . . . . . . . . . . . . . . . . . . . . . Damage Inflicted 76724 | 122 1187 123 2532 1538 744 42 2688 4507 4598 589 . . 2651 4671 110 . . 3978 862 1330 468 497 360 1449 10887 8414 792 442 1462 6628 2039 6933 4081 Guns 19567 | 93 925 18 1830 624 744 42 2688 2914 1974 105 . . 351 4015 . . . 359 . . . . . . . . . 201 611 351 170 . 1552 Cannons 31125 | . . . 40 . . . . . . . . . . 93 110 . . 904 601 1200 468 497 . 1265 9537 3339 . 241 667 3943 1839 5526 855 Explosions 22949 | 29 260 72 592 788 . . . 1579 2624 484 . . 1714 563 . . . 1346 261 130 . . . 184 1350 4749 792 . 166 2226 . 1407 1633 Melee 2898 | . . . 32 117 . . . . . . . . 586 . . . . 1369 . . . . 360 . . 326 . . . 108 . . . Ramming 185 | . 2 33 38 9 . . . 14 . . . . . . . . . . . . . . . . . . . . 18 . 30 . 41 Kinetic 17652 | 35 436 . 1559 624 744 42 2688 2914 1974 105 . . 351 4015 . . . 359 . . . . . . . . . 146 247 351 . . 1062 Thermal 31167 | 29 489 18 311 . . . . 240 864 . . . 389 66 . . . 513 601 1200 468 497 . 1265 9838 3444 . 296 1031 4003 1583 3981 41 Explosive 8111 | . 260 72 592 788 . . . . 23 . . . . . . . . 381 261 130 . . . 184 650 . . . . 1730 . 1407 1633 Electromagnetic 16711 | 58 . . . . . . . 1339 1737 484 . . 1325 590 110 . . 1356 . . . . . . 399 4644 792 . 166 436 426 1545 1304 Impact . | . . . . . . . . . . . . . . . . . . . . . . . . . . . . . . . . . . Slashing 2898 | . . . 32 117 . . . . . . . . 586 . . . . 1369 . . . . 360 . . 326 . . . 108 . . . Piercing . | . . . . . . . . . . . . . . . . . . . . . . . . . . . . . . . . . . Highest Corruption 67 | . . . . 2 2 2 . 4 1 2 2 2 3 3 3 . . 2 2 2 2 2 2 3 4 4 4 4 7 11 9 18 67 Average Corruption 5 | . . . . 2 2 2 . 3 1 1 2 2 2 1 2 . . 1 2 1 2 2 2 2 3 4 4 4 4 8 5 12 34 Corruption Purged 5 | . . . . . . . . . . . . . . 2 3 . . . . . . . . . . . . . . . . . . Effects 600 | . . . . . 7 1 . 2 2 12 5 1 25 25 2 . . 15 8 2 12 21 5 12 22 38 6 57 10 49 12 116 133 Message Errors 133 | . . . . . 3 1 . 2 . 6 1 . 5 9 1 . . 3 3 . 5 11 . 2 5 9 1 16 3 9 2 26 10 Matter Fused 83 | . . . . . . . . . . . . . 6 4 1 . . . . . . . . 4 3 7 1 14 . 11 3 14 15 Heat Flow Errors 55 | . . . . . 1 . . . . 1 . . 1 1 . . . 1 . 1 3 3 . 1 2 5 . 7 1 2 1 15 9 Energy Discharges 84 | . . . . . 3 . . . 2 3 4 . 6 6 . . . 3 4 . 2 . 1 1 2 9 . 13 1 6 1 11 6 Parts Rejected 3 | . . . . . . . . . . . . . . . . . . . . . . . . . . . . . 1 . . . 2 Data Loss (minor) 73 | . . . . . . . . . . 2 . 1 3 3 . . . 5 1 1 2 7 4 1 3 5 3 7 3 1 1 10 10 Data Loss (major) 13 | . . . . . . . . . . . . . . . . . . . . . . . . . . . . . . 6 2 5 . Misfires 12 | . . . . . . . . . . . . . . . . . . . . . . . . . . . . . . 2 . 5 5 Alerts 1 | . . . . . . . . . . . . . . . . . . . . . . . . . . . . . . . . 1 . Misdirections 39 | . . . . . . . . . . . . . . . . . . . . . . . . . . . . . . 2 . 6 31 Targeting Errors 88 | . . . . . . . . . . . . . 3 1 . . . 3 . . . . . 3 6 3 1 . 1 9 1 21 36 Weapon Failures 16 | . . . . . . . . . . . . . 1 1 . . . . . . . . . . 1 . . . . 1 1 2 9 Overload Shots . | . . . . . . . . . . . . . . . . . . . . . . . . . . . . . . . . . . Overflow Damage 2651 | . 40 . . 6 . . . 27 223 3 . . 70 32 33 . . 44 10 115 4 41 87 12 393 302 51 . 30 600 134 186 208 Projectiles 1756 | . . . . . . . . . . . . . . . 33 . . 26 9 115 4 41 . 8 388 71 . . 30 529 131 164 207 Explosions 750 | . 40 . . 6 . . . 27 223 3 . . 53 32 . . . 18 1 . . . . 4 5 231 51 . . 33 . 22 1 Melee 145 | . . . . . . . . . . . . . 17 . . . . . . . . . 87 . . . . . . 38 3 . . Knockbacks 5 | . . . . . . . . . . . . . . . . . . . . . . . . . . . . . . . . . 5 Impact 2 | . . . . . . . . . . . . . . . . . . . . . . . . . . . . . . . . . 2 Kinetic 2 | . . . . . . . . . . . . . . . . . . . . . . . . . . . . . . . . . 2 Secondary 1 | . . . . . . . . . . . . . . . . . . . . . . . . . . . . . . . . . 1 Self-Inflicted Damage 2036 | 24 135 . 51 133 . . . 319 172 86 . . 176 61 . . . 37 . . . . . 36 76 32 . . 96 235 . 19 348 Shots 71 | 1 3 . 2 3 . . . 12 5 4 . . 6 2 . . . 2 . . . . . 2 2 1 . . 1 8 . 1 16 Rammed 29 | . . 8 6 3 . . . . . . . . . . . . . . . . . . . . . . . . 2 . 2 . 8 Targets Rammed 31 | . 1 8 6 3 . . . 1 . . . . . . . . . . . . . . . . . . . . 2 . 2 . 8 Kicked . | . . . . . . . . . . . . . . . . . . . . . . . . . . . . . . . . . . Crushed 2 | . 1 . . . . . . 1 . . . . . . . . . . . . . . . . . . . . . . . . . Highest Temperature 634 | 12 87 30 372 69 127 11 291 95 32 99 . . 106 189 201 . . 286 . 169 207 277 . 199 242 231 . 252 134 155 396 634 192 Average Temperature 65 | 12 26 18 84 25 64 6 94 22 10 58 . . 29 31 67 . . 85 . 26 77 85 . 99 110 109 . 85 26 65 129 108 65 Received Heat Transfer 6479 | . 333 30 282 294 . . 972 747 441 . . . 390 360 60 . . 419 36 . . 9 . 129 777 499 18 . 117 211 60 224 71 Effects 10 | . . . . . . . . . . . . . . . . . . . . . . . . . . . . . . . 1 9 . Shutdowns 2 | . . . . . . . . . . . . . . . . . . . . . . . . . . . . . . . 1 1 . Energy Bleed 4 | . . . . . . . . . . . . . . . . . . . . . . . . . . . . . . . . 4 . Interference 1 | . . . . . . . . . . . . . . . . . . . . . . . . . . . . . . . . 1 . Damage (major) 3 | . . . . . . . . . . . . . . . . . . . . . . . . . . . . . . . . 3 . Siege Activations 10 | . . . . . . . . . . . . . . . . . . . . . . . . . 2 . . 1 . 3 1 2 1 Total Turns 199 | . . . . . . . . . . . . . . . . . . . . . . . . . 56 . . 8 . 98 10 25 2 Longest Duration 59 | . . . . . . . . . . . . . . . . . . . . . . . . . 38 . . 8 . 59 10 15 2 Robots Corrupted 61 | . . . . . . . . 2 6 2 . . 3 1 . . . 8 . . . . . . 2 18 4 . . . 3 9 3 Combat Hostiles 51 | . . . . . . . . 2 6 2 . . 2 . . . . 6 . . . . . . 2 13 3 . . . 3 9 3 Parts Fried 138 | . . . . . . . . 7 10 5 . . 6 8 . . . 26 . . . . . . 1 37 4 . . 1 3 17 13 Impact Corruptions 1 | . . . . . . . . . . . . . . . . . . . . . . . . . . . . . . . 1 . . Robots Melted . | . . . . . . . . . . . . . . . . . . . . . . . . . . . . . . . . . . Combat Hostiles . | . . . . . . . . . . . . . . . . . . . . . . . . . . . . . . . . . . Parts Melted 21 | . . . . . . . . 2 1 . . . . . . . . . . . . . . 1 7 2 . . . 2 2 4 . Heat Transferred 20387 | 50 1100 37 741 . . . . 417 550 . . . 350 100 . . . 325 325 625 225 275 . 675 5475 1975 . 199 782 1925 906 3293 37 Parts Sabotaged . | . . . . . . . . . . . . . . . . . . . . . . . . . . . . . . . . . . Parts Stolen . | . . . . . . . . . . . . . . . . . . . . . . . . . . . . . . . . . . Parts Stripped . | . . . . . . . . . . . . . . . . . . . . . . . . . . . . . . . . . . Power Chain Reactions 25 | 1 . . . . . . . 5 6 1 . . 3 3 . . . 1 . . . . . . 1 3 . . . 1 . . . Missiles Intercepted . | . . . . . . . . . . . . . . . . . . . . . . . . . . . . . . . . . . Alert | -11 -10 -10 -9 -9 -9 -8 -8 -8 -7 -7 -7 -7 -6 -6 -6 -6 -6 -6 -5 -5 -5 -5 -5 -4 -4 -4 -4 -4 -4 -3 -2 -2 -2 ------- Run | Scr Mat Min Mat Min Exi Min Mat Sto Fac Low Low Dat Pro Fac Low Low Zio Dee Pro Fac Upp Upp Zhi Pro Fac Ext Cet Arc Hub Res Res Tes Sec Peak Influence 1257 | 15 176 65 535 373 . 85 468 1090 1257 . . . . 834 . . . . . 194 . . . . 1140 1146 675 445 530 680 449 1104 1060 Initial 612 | . 9 5 16 198 . . 33 169 495 . . . . 144 . . . . . 18 . . . . . 558 612 270 . 278 379 196 599 Average 344 | 5 75 29 285 269 . 82 185 451 580 . . . . 206 . . . . . 90 . . . . 382 780 660 103 69 489 366 512 843 Maximum Alert Level 4 | . . . 2 1 . . 2 3 4 . . . . 3 . . . . . . . . . . 4 4 2 2 2 2 2 4 3 Low Security (%) 38 | 100 100 100 27 19 . 100 65 15 . . . . . 53 . . . . . 100 . . . . 39 . . 73 88 2 . . . Level 1 25 | . . . 46 80 . . 28 22 17 . . . . 41 . . . . . . . . . . 19 . . 14 10 28 69 48 . Level 2 25 | . . . 26 . . . 5 52 64 . . . . . . . . . . . . . . . 22 57 100 12 . 68 30 31 25 Level 3 8 | . . . . . . . . 8 8 . . . . 4 . . . . . . . . . . 14 24 . . . . . 14 74 Level 4 2 | . . . . . . . . . 9 . . . . . . . . . . . . . . . 4 18 . . . . . 4 . Level 5 . | . . . . . . . . . . . . . . . . . . . . . . . . . . . . . . . . . . High Security . | . . . . . . . . . . . . . . . . . . . . . . . . . . . . . . . . . . Max Security . | . . . . . . . . . . . . . . . . . . . . . . . . . . . . . . . . . . Squads Dispatched 101 | . 1 1 2 . . . 7 8 9 . . . 1 11 . . . . . 4 . . . . 12 6 . . 5 6 2 15 11 Investigation 5 | . . 1 . . . . 1 . . . . . . . . . . . . 1 . . . . . . . . 2 . . . . Extermination 25 | . . . . . . . . . 2 . . . . 6 . . . . . 1 . . . . 4 . . . 1 2 2 4 3 Reinforcement 34 | . 1 . 2 . . . 3 4 4 . . . . 5 . . . . . 1 . . . . 3 3 . . . 1 . 5 2 Assault 25 | . . . . . . . . 4 1 . . . 1 . . . . . . 1 . . . . 5 3 . . 1 3 . 3 3 Garrison 9 | . . . . . . . 3 . 2 . . . . . . . . . . . . . . . . . . . 1 . . 3 . Intercept 3 | . . . . . . . . . . . . . . . . . . . . . . . . . . . . . . . . . 3 Construction Impeded 7 | . . . . . . . . . 2 . . . . 1 . . . . . 1 . . . . . 2 . . . 1 . . . Haulers Reinforced 3 | . . . . . . . . . . . . . . 1 . . . . . . . . . . 2 . . . . . . . . Stealth | -11 -10 -10 -9 -9 -9 -8 -8 -8 -7 -7 -7 -7 -6 -6 -6 -6 -6 -6 -5 -5 -5 -5 -5 -4 -4 -4 -4 -4 -4 -3 -2 -2 -2 --------- Run | Scr Mat Min Mat Min Exi Min Mat Sto Fac Low Low Dat Pro Fac Low Low Zio Dee Pro Fac Upp Upp Zhi Pro Fac Ext Cet Arc Hub Res Res Tes Sec Distress Signals 25 | . . . 3 . . . 2 4 1 . . . . 3 . . . . . . . . . . 4 4 1 . 1 1 . 1 . Communications Jammed 65 | . . . . . . . . . . . . . . . . . . . . . . . . . . . . . . 8 18 35 4 Distress Signals 65 | . . . . . . . . . . . . . . . . . . . . . . . . . . . . . . 8 18 35 4 Times Spotted 674 | . 17 8 44 30 4 3 41 66 44 9 . . 21 40 2 . . 24 10 4 1 5 . 8 64 60 5 3 17 40 14 53 37 Peak Tracking Total 23 | . 3 2 5 11 9 3 7 17 5 4 . . 7 4 2 . . 6 5 2 1 4 . 4 8 12 5 2 23 8 3 9 10 Tactical Retreats 48 | . . 1 6 1 . . 4 3 7 . . . 1 4 . . . 3 . . . 1 . . 2 3 . . . 6 . 3 3 Traps | -11 -10 -10 -9 -9 -9 -8 -8 -8 -7 -7 -7 -7 -6 -6 -6 -6 -6 -6 -5 -5 -5 -5 -5 -4 -4 -4 -4 -4 -4 -3 -2 -2 -2 ------- Run | Scr Mat Min Mat Min Exi Min Mat Sto Fac Low Low Dat Pro Fac Low Low Zio Dee Pro Fac Upp Upp Zhi Pro Fac Ext Cet Arc Hub Res Res Tes Sec Traps Triggered 20 | . . . 1 . . . . 4 4 . . . 1 . 1 . . . . . . . . . 1 3 . . 2 2 . 1 . Indirectly 7 | . . . . . . . . . 1 . . . 1 . . . . . . . . . . . . 3 . . 2 . . . . Trap Hack Attempts . | . . . . . . . . . . . . . . . . . . . . . . . . . . . . . . . . . . Triggered . | . . . . . . . . . . . . . . . . . . . . . . . . . . . . . . . . . . Disarmed 10 | . . . 6 . . . . . . . . . . . . . . . . . . . . . . 4 . . . . . . . Reprogrammed . | . . . . . . . . . . . . . . . . . . . . . . . . . . . . . . . . . . Reused 2 | . . . . . 2 . . . . . . . . . . . . . . . . . . . . . . . . . . . . Traps Extracted . | . . . . . . . . . . . . . . . . . . . . . . . . . . . . . . . . . . Installed 2 | . . . . . 2 . . . . . . . . . . . . . . . . . . . . . . . . . . . . Triggered 6 | . . . . . . . . . . . . . 2 1 . . . . . . . 1 . . . . . . . . . 2 . Exploded 3 | . . . . . 3 . . . . . . . . . . . . . . . . . . . . . . . . . . . . Machines | -11 -10 -10 -9 -9 -9 -8 -8 -8 -7 -7 -7 -7 -6 -6 -6 -6 -6 -6 -5 -5 -5 -5 -5 -4 -4 -4 -4 -4 -4 -3 -2 -2 -2 ---------- Run | Scr Mat Min Mat Min Exi Min Mat Sto Fac Low Low Dat Pro Fac Low Low Zio Dee Pro Fac Upp Upp Zhi Pro Fac Ext Cet Arc Hub Res Res Tes Sec Machines Disabled 80 | . 2 . 1 . 2 . 1 6 12 . . . 1 8 . . . 2 . 3 . . . . 7 4 . 3 10 4 . 9 5 Max in Single Turn 11 | . 1 . 1 . 1 . 1 2 11 . . . 1 3 . . . 1 . 2 . . . . 2 2 . 1 3 1 . 2 1 Garrison Access 6 | . . . . . . . . . . . . . . 1 . . . . . 1 . . . . 1 . . . 1 1 . 1 . Network Hub 1 | . . . . . . . . . . . . . . . . . . . . . . . . . . . . . 1 . . . . Machines Sabotaged . | . . . . . . . . . . . . . . . . . . . . . . . . . . . . . . . . . . Garrisons Compromised . | . . . . . . . . . . . . . . . . . . . . . . . . . . . . . . . . . . Overloaded Fab Kills . | . . . . . . . . . . . . . . . . . . . . . . . . . . . . . . . . . . Fab Network Shutdowns 1 | . . . . . . . . . . . . . . 1 . . . . . . . . . . . . . . . . . . . Hacking | -11 -10 -10 -9 -9 -9 -8 -8 -8 -7 -7 -7 -7 -6 -6 -6 -6 -6 -6 -5 -5 -5 -5 -5 -4 -4 -4 -4 -4 -4 -3 -2 -2 -2 --------- Run | Scr Mat Min Mat Min Exi Min Mat Sto Fac Low Low Dat Pro Fac Low Low Zio Dee Pro Fac Upp Upp Zhi Pro Fac Ext Cet Arc Hub Res Res Tes Sec Machines Accessed 91 | . 7 1 8 . 2 . 4 5 3 1 . 4 . 12 2 1 . . . 3 . . 9 . 1 2 . . 2 6 . 9 9 Terminals 54 | . 7 1 6 . . . 3 4 2 . . . . 7 . . . . . 2 . . . . . 2 . . 2 3 . 7 8 Fabricators 3 | . . . . . . . . . 1 . . . . 2 . . . . . . . . . . . . . . . . . . . Repair Stations 5 | . . . 1 . . . . 1 . . . . . 1 . . . . . . . . . . . . . . . . . 1 1 Recycling Units . | . . . . . . . . . . . . . . . . . . . . . . . . . . . . . . . . . . Scanalyzers 5 | . . . 1 . . . 1 . . . . . . 1 . . . . . . . . . . . . . . . 2 . . . Garrison Access 5 | . . . . . . . . . . . . . . 1 . . . . . 1 . . . . 1 . . . . 1 . 1 . Total Hacks 293 | . 23 5 29 . 2 . 11 10 5 1 . 30 . 29 2 6 . . . 11 . . 48 . 1 7 . . 5 17 . 30 21 Successful 186 | . 12 2 16 . 2 . 4 7 2 1 . 30 . 16 2 6 . . . 3 . . 48 . . 3 . . 1 7 . 12 12 Failed 105 | . 10 2 13 . . . 7 3 3 . . . . 13 . . . . . 8 . . . . 1 4 . . 4 10 . 18 9 Catastrophic 15 | . 1 1 1 . . . 1 1 1 . . . . 1 . . . . . 2 . . . . 1 . . . 2 1 . . 2 Database Lockouts 2 | . 1 1 . . . . . . . . . . . . . . . . . . . . . . . . . . . . . . . Manual 46 | . 9 5 11 . 1 . 1 2 . . . . . 8 . . . . . 1 . . . . . 1 . . 2 3 . . 2 Terminals 153 | . 23 5 23 . . . 6 8 3 . . . . 17 . . . . . 9 . . . . . 7 . . 5 8 . 20 19 Fabricators 8 | . . . . . . . . . 2 . . . . 6 . . . . . . . . . . . . . . . . . . . Repair Stations 15 | . . . 2 . . . . 2 . . . . . 2 . . . . . . . . . . . . . . . . . 7 2 Recycling Units . | . . . . . . . . . . . . . . . . . . . . . . . . . . . . . . . . . . Scanalyzers 19 | . . . 4 . . . 5 . . . . . . 3 . . . . . . . . . . . . . . . 7 . . . Garrison Access 9 | . . . . . . . . . . . . . . 1 . . . . . 2 . . . . 1 . . . . 2 . 3 . Terminal Hacks 146 | . 10 2 8 . 2 . 1 4 . 1 . 30 . 7 2 6 . . . 3 . . 48 . . 3 . . . 2 . 9 8 Record 54 | . . . . . 1 . . . . . . 11 . . . 6 . . . . . . 36 . . . . . . . . . . Part Schematic 18 | . 1 2 1 . . . . . . . . 9 . . . . . . . . . . 4 . . . . . . . . 1 . Robot Schematic 7 | . . . . . . . . . . . . 7 . . . . . . . . . . . . . . . . . . . . . Robot Analysis 9 | . 1 . . . . . . . . . . . . 1 . . . . . 1 . . 4 . . . . . . 1 . 1 . Prototype ID Bank 17 | . 2 . 2 . . . . 1 . . . 3 . 1 . . . . . 1 . . 4 . . . . . . . . 2 1 Open Door 9 | . . . . . . . . 2 . 1 . . . . 2 . . . . . . . . . . . . . . . . 1 3 Level Access Points 1 | . . . . . . . . . . . . . . . . . . . . . . . . . . . . . . 1 . . . Branch Access Points 4 | . . . 1 . . . 1 . . . . . . 1 . . . . . 1 . . . . . . . . . . . . . Terminal Index 2 | . 1 . . . . . . . . . . . . . . . . . . . . . . . . . . . . . . 1 . Fabricator Index 1 | . . . . . . . . . . . . . . 1 . . . . . . . . . . . . . . . . . . . Unreport Threat 1 | . . . . . . . . . . . . . . . . . . . . . . . . . . 1 . . . . . . . Locate Traps 8 | . 3 . 1 . . . . 1 . . . . . 1 . . . . . . . . . . . 1 . . . . . 1 . Disarm Traps 2 | . . . 1 . . . . . . . . . . . . . . . . . . . . . . 1 . . . . . . . Assault Status 1 | . . . . . . . . . . . . . . . . . . . . . . . . . . . . . . . . . 1 Recall Reinforcements 2 | . . . . . . . . . . . . . . 1 . . . . . . . . . . . . . . . . . 1 . Hauler Manifests 2 | . 1 . . . . . . . . . . . . 1 . . . . . . . . . . . . . . . . . . . Zone Layout 4 | . 1 . 2 . . . . . . . . . . . . . . . . . . . . . . . . . . . . . 1 EX-Prototype ID Bank 1 | . . . . . 1 . . . . . . . . . . . . . . . . . . . . . . . . . . . . Protovariant Controls 1 | . . . . . . . . . . . . . . . . . . . . . . . . . . . . . . . . 1 . Activate Exoskeleton 2 | . . . . . . . . . . . . . . . . . . . . . . . . . . . . . . . . . 2 Fabricator Hacks 7 | . . . . . . . . . 2 . . . . 5 . . . . . . . . . . . . . . . . . . . Load Schematic 3 | . . . . . . . . . 1 . . . . 2 . . . . . . . . . . . . . . . . . . . Build 4 | . . . . . . . . . 1 . . . . 3 . . . . . . . . . . . . . . . . . . . Repair Station Hacks 10 | . . . 2 . . . . 2 . . . . . 2 . . . . . . . . . . . . . . . . . 2 2 Scan Component 5 | . . . 1 . . . . 1 . . . . . 1 . . . . . . . . . . . . . . . . . 1 1 Repair 5 | . . . 1 . . . . 1 . . . . . 1 . . . . . . . . . . . . . . . . . 1 1 Recycling Unit Hacks . | . . . . . . . . . . . . . . . . . . . . . . . . . . . . . . . . . . Scanalyzer 11 | . . . 3 . . . 3 . . . . . . 1 . . . . . . . . . . . . . . . 4 . . . Insert Component 8 | . . . 2 . . . 2 . . . . . . 1 . . . . . . . . . . . . . . . 3 . . . Analyze 3 | . . . 1 . . . 1 . . . . . . . . . . . . . . . . . . . . . . 1 . . . Garrison Access Hacks 3 | . . . . . . . . . . . . . . 1 . . . . . . . . . . . . . . . 1 . 1 . Seal Access 3 | . . . . . . . . . . . . . . 1 . . . . . . . . . . . . . . . 1 . 1 . Unauthorized Hacks 9 | . 2 . 3 . . . . 1 . . . . . . . . . . . . . . . . . . . . 1 . . . 2 Terminals 9 | . 2 . 3 . . . . 1 . . . . . . . . . . . . . . . . . . . . 1 . . . 2 Track 6 | . 1 . 2 . . . . 1 . . . . . . . . . . . . . . . . . . . . 1 . . . 1 Operators 3 | . 1 . 1 . . . . . . . . . . . . . . . . . . . . . . . . . . . . . 1 Fabricators . | . . . . . . . . . . . . . . . . . . . . . . . . . . . . . . . . . . Repair Stations . | . . . . . . . . . . . . . . . . . . . . . . . . . . . . . . . . . . Recycling Units . | . . . . . . . . . . . . . . . . . . . . . . . . . . . . . . . . . . Scanalyzers . | . . . . . . . . . . . . . . . . . . . . . . . . . . . . . . . . . . Garrison Access . | . . . . . . . . . . . . . . . . . . . . . . . . . . . . . . . . . . Data Cores Recovered 1 | . . . . . . . . . . . . . . 1 . . . . . . . . . . . . . . . . . . . Used . | . . . . . . . . . . . . . . . . . . . . . . . . . . . . . . . . . . Hacking Detections 57 | . 7 1 7 . . . 3 3 2 . . . . 10 . . . . . 3 . . . . 1 2 . . 2 6 . 5 5 Full Trace Events 5 | . . 1 1 . . . 2 . . . . . . . . . . . . 1 . . . . . . . . . . . . . Feedback Events . | . . . . . . . . . . . . . . . . . . . . . . . . . . . . . . . . . . Feedback Blocked . | . . . . . . . . . . . . . . . . . . . . . . . . . . . . . . . . . . Robot Schematics Acquired 7 | . . . . . . . . . . . . 7 . . . . . . . . . . . . . . . . . . . . . Robots Built . | . . . . . . . . . . . . . . . . . . . . . . . . . . . . . . . . . . Matter . | . . . . . . . . . . . . . . . . . . . . . . . . . . . . . . . . . . Time . | . . . . . . . . . . . . . . . . . . . . . . . . . . . . . . . . . . Total Robot Build Rating . | . . . . . . . . . . . . . . . . . . . . . . . . . . . . . . . . . . Part Schematics Acquired 21 | . 1 2 2 . . . 1 . . . . 9 . . . . . . . . . . 4 . . . . . . 1 . 1 . Parts Built 6 | . . . . . . . . . 2 . . . . 4 . . . . . . . . . . . . . . . . . . . Matter 884 | . . . . . . . . . 102 . . . . 782 . . . . . . . . . . . . . . . . . . . Time 435 | . . . . . . . . . 25 . . . . 410 . . . . . . . . . . . . . . . . . . . Total Part Build Rating 24 | . . . . . . . . . 2 . . . . 22 . . . . . . . . . . . . . . . . . . . Parts Repaired 4 | . . . 1 . . . . 1 . . . . . 1 . . . . . . . . . . . . . . . . . 1 . Time 214 | . . . 38 . . . . 100 . . . . . 44 . . . . . . . . . . . . . . . . . 8 24 Parts Recycled . | . . . . . . . . . . . . . . . . . . . . . . . . . . . . . . . . . . Recycled Matter . | . . . . . . . . . . . . . . . . . . . . . . . . . . . . . . . . . . Retrieved Matter . | . . . . . . . . . . . . . . . . . . . . . . . . . . . . . . . . . . Retrieved Components . | . . . . . . . . . . . . . . . . . . . . . . . . . . . . . . . . . . Parts Scanalyzed 6 | . . . 2 . . . 2 . . . . . . . . . . . . . . . . . . . . . . 2 . . . Part Schematics Acquired 3 | . . . 1 . . . 1 . . . . . . . . . . . . . . . . . . . . . . 1 . . . Parts Damaged 1 | . . . . . . . 1 . . . . . . . . . . . . . . . . . . . . . . . . . . Bothacking | -11 -10 -10 -9 -9 -9 -8 -8 -8 -7 -7 -7 -7 -6 -6 -6 -6 -6 -6 -5 -5 -5 -5 -5 -4 -4 -4 -4 -4 -4 -3 -2 -2 -2 ------------ Run | Scr Mat Min Mat Min Exi Min Mat Sto Fac Low Low Dat Pro Fac Low Low Zio Dee Pro Fac Upp Upp Zhi Pro Fac Ext Cet Arc Hub Res Res Tes Sec Used RIF Installer . | . . . . . . . . . . . . . . . . . . . . . . . . . . . . . . . . . . Robots Hacked . | . . . . . . . . . . . . . . . . . . . . . . . . . . . . . . . . . . Non-combat . | . . . . . . . . . . . . . . . . . . . . . . . . . . . . . . . . . . Combat . | . . . . . . . . . . . . . . . . . . . . . . . . . . . . . . . . . . Robot Hacks Applied . | . . . . . . . . . . . . . . . . . . . . . . . . . . . . . . . . . . Relay Couplers Released 11 | . . . . . . . . . 4 . . . . . . . . . . 3 . . . . 1 . . . 3 . . . . Machine Destruction 7 | . . . . . . . . . . . . . . . . . . . . 3 . . . . 1 . . . 3 . . . . Programmers 4 | . . . . . . . . . 4 . . . . . . . . . . . . . . . . . . . . . . . . Robots Rewired 15 | . . . . . . . . . . . . . . . . . . . . . . . . . . 14 . . . . . 1 . Allies Hacked . | . . . . . . . . . . . . . . . . . . . . . . . . . . . . . . . . . . Hacks Repelled . | . . . . . . . . . . . . . . . . . . . . . . . . . . . . . . . . . . Allies | -11 -10 -10 -9 -9 -9 -8 -8 -8 -7 -7 -7 -7 -6 -6 -6 -6 -6 -6 -5 -5 -5 -5 -5 -4 -4 -4 -4 -4 -4 -3 -2 -2 -2 -------- Run | Scr Mat Min Mat Min Exi Min Mat Sto Fac Low Low Dat Pro Fac Low Low Zio Dee Pro Fac Upp Upp Zhi Pro Fac Ext Cet Arc Hub Res Res Tes Sec Total Allies 34 | . . 3 . . . . . 2 . . . . 1 . . . 5 . . . . . . . . 22 . . . . . 1 . Largest Group 13 | . . 3 . . . . . 2 . . . . 1 . . . 5 5 . . . . . . . 13 5 2 1 . . 1 . Highest-Rated Group 600 | . . 40 . . . . . 62 . . . . 94 . . . 139 139 . . . . . . . 600 216 95 49 . . 69 . Highest-Rated Ally 156 | . . 16 . . . . . 31 . . . . 94 . . . 37 37 . . . . . . . 156 49 49 49 . . 69 . Total Orders . | . . . . . . . . . . . . . . . . . . . . . . . . . . . . . . . . . . Ally Attacks 187 | . . 18 . . . . . 9 . . . . 8 . . . . 18 . . . . . . . 104 13 8 5 . . 4 . Total Damage 4598 | . . 150 . . . . . 165 . . . . 187 . . . . 306 . . . . . . . 3044 333 203 105 . . 105 . Kills 28 | . . 4 . . . . . 1 . . . . 1 . . . . 3 . . . . . . . 16 1 2 . . . . . Allies Corrupted 1 | . . . . . . . . . . . . . 1 . . . . . . . . . . . . . . . . . . . . Allies Melted . | . . . . . . . . . . . . . . . . . . . . . . . . . . . . . . . . . . Intel | -11 -10 -10 -9 -9 -9 -8 -8 -8 -7 -7 -7 -7 -6 -6 -6 -6 -6 -6 -5 -5 -5 -5 -5 -4 -4 -4 -4 -4 -4 -3 -2 -2 -2 ------- Run | Scr Mat Min Mat Min Exi Min Mat Sto Fac Low Low Dat Pro Fac Low Low Zio Dee Pro Fac Upp Upp Zhi Pro Fac Ext Cet Arc Hub Res Res Tes Sec Robot Analysis Total 9 | . 1 . . . . . . . . . . . . 1 . . . . . 1 . . 4 . . . . . . 1 . 1 . Derelict Logs Recovered 12 | . . 1 . 1 . . . . . 1 . . 2 . . 2 2 . . . 1 . . 2 . . . . . . . . . Drone Launches . | . . . . . . . . . . . . . . . . . . . . . . . . . . . . . . . . . . Drone Recoveries . | . . . . . . . . . . . . . . . . . . . . . . . . . . . . . . . . . . Exploration | -11 -10 -10 -9 -9 -9 -8 -8 -8 -7 -7 -7 -7 -6 -6 -6 -6 -6 -6 -5 -5 -5 -5 -5 -4 -4 -4 -4 -4 -4 -3 -2 -2 -2 ------------- Run | Scr Mat Min Mat Min Exi Min Mat Sto Fac Low Low Dat Pro Fac Low Low Zio Dee Pro Fac Upp Upp Zhi Pro Fac Ext Cet Arc Hub Res Res Tes Sec Turns Passed 44850 | 96 1319 1010 1940 914 1295 116 1318 2223 1575 1452 426 158 1350 3259 1183 856 3101 2052 690 1102 988 1565 492 1011 1789 1733 197 2979 516 1885 992 2141 1127 Spaces Moved 18199 | 64 684 595 774 437 598 55 487 778 567 667 204 80 574 1048 489 482 1882 914 342 327 484 828 242 310 625 613 87 244 212 679 431 710 686 Core 421 | 1 . . . . . . . . . . . . . 6 . . . . . . . . . . . . . 50 . . . . 364 Treads 15504 | . 661 595 774 437 598 55 487 778 567 667 204 80 574 354 489 482 1533 914 342 327 484 828 242 265 156 . 63 194 212 679 431 710 322 Legs 1542 | . . . . . . . . . . . . . . 391 . . . . . . . . . 45 469 613 24 . . . . . . Wheels 383 | 63 23 . . . . . . . . . . . . 297 . . . . . . . . . . . . . . . . . . . Hover . | . . . . . . . . . . . . . . . . . . . . . . . . . . . . . . . . . . Flight 349 | . . . . . . . . . . . . . . . . . 349 . . . . . . . . . . . . . . . . Fastest Speed 37 | 50 100 160 160 160 180 200 180 180 200 200 200 200 200 123 177 177 37 165 182 182 182 182 182 182 160 156 160 160 160 160 160 160 50 Average Speed 182 | 99 157 160 176 179 197 200 186 184 208 205 200 200 200 181 177 177 148 173 182 182 182 182 182 189 188 169 179 706 170 163 179 177 109 Slowest Speed 2750 | 100 160 160 180 180 200 200 200 210 225 220 200 200 200 2650 177 177 177 185 182 182 182 182 182 260 310 210 180 2750 200 180 180 180 200 Overloaded Moves . | . . . . . . . . . . . . . . . . . . . . . . . . . . . . . . . . . . Propulsion Burnouts . | . . . . . . . . . . . . . . . . . . . . . . . . . . . . . . . . . . Robots Hopped . | . . . . . . . . . . . . . . . . . . . . . . . . . . . . . . . . . . Cave-ins Triggered . | . . . . . . . . . . . . . . . . . . . . . . . . . . . . . . . . . . Teleports 2 | . . . . . . . . . . . . . . . . . . . . . . . . . . . . . . . . . 2 Exploration Rate (%) 55 | 5 98 100 78 71 70 22 47 88 19 58 40 68 75 32 70 71 86 74 56 12 53 83 62 51 18 77 46 86 16 19 10 67 57 Regions Visited 33 Branch Regions 24 Pre-discovered Areas 10 | . . . . . 1 . . . . . . 1 1 . . 3 1 . . . . . 3 . . . . . . . . . . Known Exits Taken 23 | . . . 1 . . . 1 . 1 1 . . 1 1 1 1 1 1 1 1 1 1 1 1 1 1 1 1 1 1 1 . . Unknown Exits Taken 10 | 1 1 1 . 1 1 1 . 1 . . 1 1 . . . . . . . . . . . . . . . . . . . 1 . Scrap Searched 24 | . . 1 . 1 . . . . . 1 1 . 4 . . 5 4 . 1 . . 3 . 3 . . . . . . . . . Spaces Dug 174 | . . 6 15 1 . . . 13 . 1 . . 6 8 . . 3 . 2 20 6 . . . 5 10 . . . 36 8 25 9 Terrain Destroyed 1250 | 3 18 22 70 62 15 . . 31 88 1 . . 31 74 . . 3 69 46 30 9 5 . 40 159 32 . 3 191 101 13 82 52 Melee 27 | . . . . 1 . . . 7 . 1 . . 6 7 . . 3 . . . . . . . . . . . . 2 . . . Projectile 238 | . . . . . 15 . . . . . . . . 2 . . . 6 3 22 9 5 . 10 47 17 . 3 12 19 13 42 13 AOE 985 | 3 18 22 70 61 . . . 24 88 . . . 25 65 . . . 63 43 8 . . . 30 112 15 . . 179 80 . 40 39 Terrain Rammed . | . . . . . . . . . . . . . . . . . . . . . . . . . . . . . . . . . . Walls Destroyed . | . . . . . . . . . . . . . . . . . . . . . . . . . . . . . . . . . . Machines Disabled . | . . . . . . . . . . . . . . . . . . . . . . . . . . . . . . . . . . Actions | -11 -10 -10 -9 -9 -9 -8 -8 -8 -7 -7 -7 -7 -6 -6 -6 -6 -6 -6 -5 -5 -5 -5 -5 -4 -4 -4 -4 -4 -4 -3 -2 -2 -2 --------- Run | Scr Mat Min Mat Min Exi Min Mat Sto Fac Low Low Dat Pro Fac Low Low Zio Dee Pro Fac Upp Upp Zhi Pro Fac Ext Cet Arc Hub Res Res Tes Sec Total 27356 | 83 809 643 1147 497 715 58 710 1391 834 725 223 79 696 2168 797 486 2142 1254 392 786 565 867 292 695 995 1185 121 1487 310 1310 587 1390 917 Wait 5945 | . 35 28 177 3 82 . 49 360 116 15 20 . 15 873 295 . 81 146 35 392 60 25 32 341 181 296 7 1234 48 467 71 413 48 Move 18167 | 63 683 594 773 436 597 54 486 777 566 666 203 79 573 1047 488 481 1881 913 341 326 483 827 241 309 624 612 86 243 212 678 430 709 686 Hop . | . . . . . . . . . . . . . . . . . . . . . . . . . . . . . . . . . . Pick Up 380 | 7 13 5 31 4 14 . 23 30 13 9 . . 13 31 1 2 47 26 2 6 1 . 3 6 17 6 3 . 1 14 20 16 16 Fast Attach 135 | 7 2 1 4 . . . 5 8 4 2 . . 1 14 . . 14 6 . . . . 2 1 6 12 5 2 6 6 2 12 13 Attach 162 | . 3 . 7 10 3 2 7 4 9 6 . . 9 16 . . 8 16 . 3 . . 1 1 7 4 1 . . 6 7 11 21 Detach 48 | . . . . . 2 . . . . . . . 1 1 . . 1 5 1 2 . . 1 2 5 3 . . . 2 . 14 8 Swap 306 | . 4 1 14 4 5 . 9 33 22 8 . . 10 25 9 1 4 12 1 14 9 7 1 7 14 11 2 . 8 31 7 24 9 Drop 427 | 1 9 3 27 1 9 . 11 42 9 6 . . 11 30 1 2 61 43 2 9 1 . 8 7 21 15 9 2 5 25 5 33 19 Fire 1435 | 5 59 3 107 32 . 2 120 116 93 11 . . 31 123 3 . . 49 10 34 11 8 . 21 120 78 8 6 29 74 43 150 89 Melee 155 | . . . 1 4 1 . . 14 . 2 . . 32 8 . . 45 38 . . . . 3 . . 4 . . . 3 . . . Ram 1 | . . . . . . . . . . . . . . . . . . . . . . . . . . . . . . . . . 1 Kick . | . . . . . . . . . . . . . . . . . . . . . . . . . . . . . . . . . . Crush 29 | . 1 8 6 3 . . . 1 . . . . . . . . . . . . . . . . . . . . 1 . 2 . 7 Escape Stasis 18 | . . . . . . . . 6 2 . . . . . . . . . . . . . . . . . . . . 4 . 6 . Rewire 146 | . . . . . . . . . . . . . . . . . . . . . . . . . . 144 . . . . . 2 . Trap 2 | . . . . . 2 . . . . . . . . . . . . . . . . . . . . . . . . . . . . Miscellaneous . | . . . . . . . . . . . . . . . . . . . . . . . . . . . . . . . . . . Route ------- -11/Scrapyard -10/Materials (discovered 4 exits: *Mat x3 / *Min) -10/Mines (discovered 2 exits: *Mat x2) -9/Materials (discovered 4 exits: *Mat x3 / *Min) -9/Mines (discovered 2 exits: *Mat / *Exi) -9/Exiles -8/Mines -8/Materials (discovered 2 exits: *Fac / *Sto) -8/Storage -7/Factory (discovered 3 exits: *Fac x2 / *Low) -7/Lower Caves -7/Lower Caves (discovered 2 exits: Fac / *Dat) -7/Data Miner -6/Proximity Caves -6/Factory (discovered 2 exits: *Low x2) -6/Lower Caves -6/Lower Caves -6/Zion (discovered 2 exits: *Dee / [*Pro]) -6/Deep Caves -5/Proximity Caves -5/Factory (discovered 5 exits: Fac x3 / *Upp x2) -5/Upper Caves -5/Upper Caves (discovered 2 exits: *Fac / *Zhi) -5/Zhirov -4/Proximity Caves -4/Factory -4/Extension (discovered 2 exits: *Res / *Cet) -4/Cetus -4/Archives (discovered 3 exits: *Res / *Hub x2) -4/Hub_04(d) -3/Research (discovered 3 exits: *Res x3) -2/Research (discovered 2 exits: [*Acc] / *Tes) -2/Testing -2/Section 7 History --------- Turn | Location | Event 38 | -11/Scrapyard | Discovered new exit (range 16) 97 | -11/Scrapyard | Entered Materials 315 | -10/Materials | Build established: Mutant 404 | -10/Materials | Discovered new exit (range 12) 855 | -10/Materials | Discovered new exit (range 15) 961 | -10/Materials | Core integrity fell below 50% 992 | -10/Materials | Lost 3 parts (2n1w) 1055 | -10/Materials | Discovered new exit (range 3) 1315 | -10/Materials | Discovered new exit (range 15) 1317 | -10/Materials | Central database locked down 1416 | -10/Materials | Entered Mines 1424 | -10/Mines | Assisted by bots powering up and referring to "LRC-V3" 1431 | -10/Mines | Met a Derelict bent on vengeance 1581 | -10/Mines | Learned Materials stockpile data 1584 | -10/Mines | Discovered new exit (range 4) 2038 | -10/Mines | Discovered new exit (range 9) 2270 | -10/Mines | Central database locked down 2426 | -10/Mines | Entered Materials 2426 | -9/Materials | Evolved 2 slots: Utility x2 2580 | -9/Materials | Lost 4 parts (1u3w) 2914 | -9/Materials | Build established: Scavenger-Mutant 3767 | -9/Materials | Repaired Katana 3779 | -9/Materials | Discovered new exit (range 11) 4094 | -9/Materials | Discovered new exit (range 16) 4210 | -9/Materials | Identified exit to Mines 4236 | -9/Materials | Discovered new exit (range 16) 4366 | -9/Materials | Entered Mines 4473 | -9/Mines | Discovered new exit (range 13) 4631 | -9/Mines | Learned Materials emergency access door positions 4880 | -9/Mines | Core integrity fell below 50% 4920 | -9/Mines | Found a hidden stash of uninstalled traps 5042 | -9/Mines | Deemed a non-threat by the Exiles lab entrance 5043 | -9/Mines | Discovered new exit (range 5) 5126 | -9/Mines | A weapon hastily lodged in a ceiling crevice suddenly fell to the ground 5140 | -9/Mines | Assembled infested the area 5239 | -9/Mines | Lost 7 parts (1p2n1u3w) 5269 | -9/Mines | Destroyed 12 combat bots 5280 | -9/Mines | Entered Exiles 5322 | -9/Exiles | Met 8R-AWN 5351 | -9/Exiles | Met EX-HEX 5459 | -9/Exiles | Met EX-DEC 5593 | -9/Exiles | Discovered new exit (range 14) 5703 | -9/Exiles | Learned location of Zion (-6) 5729 | -9/Exiles | Build established: Hauler-Mutant 5737 | -9/Exiles | Met EX-BIN 6060 | -9/Exiles | Aligned with FarCom system 6062 | -9/Exiles | Given EX-Vault access code 6114 | -9/Exiles | Opened EX-Vault 6140 | -9/Exiles | Found AWS/Gauss 6188 | -9/Exiles | Warned to stay clear of 0b10 Research branches 6331 | -9/Exiles | Attacked by the Exiles 6416 | -9/Exiles | Core integrity fell below 20% 6438 | -9/Exiles | Destroyed 8R-AWN 6440 | -9/Exiles | Found Prototype Protection 6443 | -9/Exiles | Found Prototype Device 6459 | -9/Exiles | Identified AS-neutralizer No. 17b 6575 | -9/Exiles | Entered Mines 6685 | -8/Mines | Discovered new exit (range 3) 6691 | -8/Mines | Entered Materials 6691 | -8/Materials | Evolved 2 slots: Propulsion x1, Utility x1 6863 | -8/Materials | Garrison activated, responded to threat 7211 | -8/Materials | Lost 4 parts (1p1n2u) 7530 | -8/Materials | Build established: Scavenger-Mutant 7716 | -8/Materials | Discovered new exit (range 14) 7755 | -8/Materials | Discovered new exit (range 11) 7879 | -8/Materials | Build established: Hauler-Mutant 7906 | -8/Materials | Identified exit to Storage 8009 | -8/Materials | Entered Storage 9092 | -8/Storage | Repaired Broken Gravity Neutralizing Apparatus 9233 | -8/Storage | Core integrity fell below 50% 9319 | -8/Storage | Discovered new exit (range 6) 9606 | -8/Storage | Found Prototype Launcher 9607 | -8/Storage | Identified Scatter Rocket Array 9614 | -8/Storage | Found Scatter Rocket Array 9989 | -8/Storage | Met a pair of Derelict thieves 10009 | -8/Storage | First assault squad dispatched 10069 | -8/Storage | Core integrity fell below 20% 10106 | -8/Storage | Destroyed 17 combat bots 10232 | -8/Storage | Entered Factory 10232 | -7/Factory | Evolved 2 slots: Utility x2 10384 | -7/Factory | Discovered new exit (range 9) 10400 | -7/Factory | Identified exit to Factory 10572 | -7/Factory | Discovered exit to Factory (range 15) 11057 | -7/Factory | Fabricated Structural Scanner (x2) 11432 | -7/Factory | First assault squad dispatched 11650 | -7/Factory | Garrison activated, responded to threat 11683 | -7/Factory | Destroyed 10 combat bots 11754 | -7/Factory | Discovered new exit (range 15) 11797 | -7/Factory | Identified exit to Lower Caves 11807 | -7/Factory | Entered Lower Caves 11865 | -7/Lower Caves | Destroyed 7 combat bots 11871 | -7/Lower Caves | Lost 4 parts (3n1u) 12045 | -7/Lower Caves | Encountered a Warlord checkpoint 12298 | -7/Lower Caves | Attracted the attention of an 0b10 checkpoint 12301 | -7/Lower Caves | Learned Factory trap positions 12452 | -7/Lower Caves | Discovered new exit (range 5) 12462 | -7/Lower Caves | Identified exit to Lower Caves 13119 | -7/Lower Caves | Found Alien Artifact 13120 | -7/Lower Caves | Identified Core Expander 13120 | -7/Lower Caves | Installed Core Expander, added new Utility slot 13259 | -7/Lower Caves | Entered another Lower Caves area 13261 | -7/Lower Caves | Discovered exit to Factory (range 11) 13368 | -7/Lower Caves | Encountered a Warlord checkpoint 13619 | -7/Lower Caves | Discovered new exit (range 18) 13685 | -7/Lower Caves | Entered Data Miner 13685 | -7/Data Miner | Discovered new exit (range 6) 13723 | -7/Data Miner | Met Data Miner 13765 | -7/Data Miner | Learned location of Section 7 (-2) 13765 | -7/Data Miner | Acquired the access code to Warlord's prototype stash 13795 | -7/Data Miner | Received God Mode back door access code from Data Miner 13843 | -7/Data Miner | Entered Proximity Caves 14096 | -6/Proximity Caves | Escorted by Enhanced Grunt 14266 | -6/Proximity Caves | Attracted the attention of an 0b10 outpost 14302 | -6/Proximity Caves | Destroyed 8 combat bots 14495 | -6/Proximity Caves | Spotted B-75 Beast 14754 | -6/Proximity Caves | Learned Factory security intel 14951 | -6/Proximity Caves | Core integrity fell below 50% 14951 | -6/Proximity Caves | Destroyed B-75 Beast 14961 | -6/Proximity Caves | Lost 4 parts (3n1w) 15163 | -6/Proximity Caves | Discovered exit to Factory (range 15) 15193 | -6/Proximity Caves | Entered Factory 15193 | -6/Factory | Evolved 2 slots: Propulsion x1, Utility x1 15194 | -6/Factory | Loaded intel: 82 trap records 15334 | -6/Factory | Found Prototype Processor 15949 | -6/Factory | Lost 3 parts (1p1n1u) 16082 | -6/Factory | Identified Exp. Signal Interpreter 16367 | -6/Factory | Lost 3 parts (3n) 17177 | -6/Factory | Identified exit to Lower Caves 17325 | -6/Factory | Fabricated Arm. Medium Treads (x2) 17999 | -6/Factory | Fabricated Exp. Sensor Array (x1) 18139 | -6/Factory | Repaired Hrd. Heavy Armor Plating 18151 | -6/Factory | Fabricated Lgt. Regenerative Plating? 18299 | -6/Factory | Local fabrication network quarantined 18452 | -6/Factory | Entered Lower Caves 19081 | -6/Lower Caves | Encountered a Warlord checkpoint 19587 | -6/Lower Caves | Discovered new exit (range 22) 19614 | -6/Lower Caves | Spotted B-75 Beast 19629 | -6/Lower Caves | Attracted the attention of an 0b10 checkpoint 19633 | -6/Lower Caves | Identified exit to Lower Caves 19635 | -6/Lower Caves | Entered another Lower Caves area 19643 | -6/Lower Caves | Encountered a Warlord checkpoint 19779 | -6/Lower Caves | Learned location of Extension (-4) 19779 | -6/Lower Caves | Learned location of Armory (-3) 19779 | -6/Lower Caves | Learned Extension trap positions 19779 | -6/Lower Caves | Learned Armory emergency access door positions 19779 | -6/Lower Caves | Learned Research security intel 19931 | -6/Lower Caves | Learned 4 Factory zone layouts 20203 | -6/Lower Caves | Discovered new exit (range 9) 20216 | -6/Lower Caves | Identified exit to Zion 20491 | -6/Lower Caves | Entered Zion 20522 | -6/Zion | Learned 4 Factory zone layouts 20621 | -6/Zion | Gained Derelict followers 20693 | -6/Zion | Discovered new exit (range 12) 20949 | -6/Zion | Gained Derelict followers 21359 | -6/Zion | Found Prototype Device 21359 | -6/Zion | Identified Bomb Factory No. 2 21465 | -6/Zion | Learned Factory repair station intel 22972 | -6/Zion | Build established: Mutant 22994 | -6/Zion | Discovered new exit (range 5) 22994 | -6/Zion | Saw the warning signs outside the Deep Caves entrance 23221 | -6/Zion | Identified 8R-AWN's Armor/EX 23345 | -6/Zion | Build established: Hauler-Mutant 23576 | -6/Zion | Identified exit to Deep Caves 23592 | -6/Zion | Entered Deep Caves 23592 | -6/Deep Caves | Accompanied by 5 allies 23769 | -6/Deep Caves | Attacked by Z-Imprinter 23808 | -6/Deep Caves | Destroyed Z-Imprinter 23832 | -6/Deep Caves | Found Prototype Device 23832 | -6/Deep Caves | Identified Zio. Metafield Generator 23856 | -6/Deep Caves | Found Prototype Protection 23927 | -6/Deep Caves | Z-Facility disabled 24061 | -6/Deep Caves | Found Prototype Protection 24061 | -6/Deep Caves | Identified Zio. Weapon Casing (x2) 24089 | -6/Deep Caves | Found Zio. Weapon Casing 24347 | -6/Deep Caves | Spotted as-83002 24374 | -6/Deep Caves | Destroyed as-83002 24404 | -6/Deep Caves | Lost 4 parts (2n2u) 24447 | -6/Deep Caves | Triggered Deep Caves wall 24449 | -6/Deep Caves | Exposed GOLEM chamber 24507 | -6/Deep Caves | Found GOLEM Unit 24512 | -6/Deep Caves | Found GOLEM Unit 24519 | -6/Deep Caves | Found GOLEM Unit 24523 | -6/Deep Caves | Spotted AS-24746 24523 | -6/Deep Caves | Spotted AS-56785 24556 | -6/Deep Caves | Destroyed AS-24746 24562 | -6/Deep Caves | Destroyed AS-56785 24585 | -6/Deep Caves | Spotted as-88629 24594 | -6/Deep Caves | Destroyed as-88629 24629 | -6/Deep Caves | Found Cloak of Protection 24803 | -6/Deep Caves | Found GOLEM Unit 24808 | -6/Deep Caves | Found GOLEM Unit 24909 | -6/Deep Caves | Found GOLEM Unit 25030 | -6/Deep Caves | Found GOLEM Unit 25104 | -6/Deep Caves | Build established: Hauler-Golem 25635 | -6/Deep Caves | Discovered new exit (range 6) 25642 | -6/Deep Caves | Identified exit to Proximity Caves 25644 | -6/Deep Caves | Entered Proximity Caves 26315 | -5/Proximity Caves | Discovered new exit (range 10) 26330 | -5/Proximity Caves | Identified exit to Factory 26334 | -5/Proximity Caves | Entered Factory 26334 | -5/Factory | Evolved 2 slots: Power x1, Utility x1 26335 | -5/Factory | Identified exit to Factory 26336 | -5/Factory | Loaded intel: 6 repair station locations 26849 | -5/Factory | Identified exit to Upper Caves 27436 | -5/Factory | Entered Upper Caves 27443 | -5/Upper Caves | Attracted the attention of an 0b10 checkpoint 27478 | -5/Upper Caves | Learned Factory stockpile data 27798 | -5/Upper Caves | Spotted B-75 Beast 28153 | -5/Upper Caves | Discovered new exit (range 15) 28422 | -5/Upper Caves | Identified exit to Upper Caves 28424 | -5/Upper Caves | Entered another Upper Caves area 28588 | -5/Upper Caves | Discovered exit to Factory (range 15) 29754 | -5/Upper Caves | Discovered new exit (range 16) 29780 | -5/Upper Caves | Identified exit to Zhirov 29989 | -5/Upper Caves | Entered Zhirov 29989 | -5/Zhirov | Discovered new exit (range 3) 30022 | -5/Zhirov | Met Zhirov 30086 | -5/Zhirov | Learned location of Quarantine (-3) 30086 | -5/Zhirov | Learned location of Testing (-2) 30086 | -5/Zhirov | Learned location of Command (-1) 30097 | -5/Zhirov | Zhirov requested help retrieving the SGEMP Prototype 30125 | -5/Zhirov | Found Alien Artifact 30154 | -5/Zhirov | Found Alien Artifact 30154 | -5/Zhirov | Identified Integrated Dissipator 30154 | -5/Zhirov | Installed Integrated Dissipator, increased core heat dissipation (+20) 30477 | -5/Zhirov | Identified exit to Proximity Caves 30481 | -5/Zhirov | Entered Proximity Caves 31097 | -4/Proximity Caves | Lost 7 parts (1p4n2w) 31492 | -4/Proximity Caves | Entered Factory 31492 | -4/Factory | Evolved 2 slots: Utility x1, Weapon x1 32367 | -4/Factory | Destroyed 7 combat bots 32440 | -4/Factory | Spotted B-86 Titan 32742 | -4/Factory | First assault squad dispatched 32767 | -4/Factory | Incoming assault squad redirected 32920 | -4/Factory | Incoming assault squad redirected 33022 | -4/Factory | Incoming assault squad redirected 33153 | -4/Factory | Found Prototype Launcher 33153 | -4/Factory | Identified Tesla Bomb Launcher 33157 | -4/Factory | Found Tesla Bomb Launcher 33227 | -4/Factory | Found Tesla Bomb Launcher 33230 | -4/Factory | Lost 3 parts (2u1w) 33234 | -4/Factory | Found Tesla Bomb Launcher 33257 | -4/Factory | Discovered new exit (range 15) 33262 | -4/Factory | Incoming assault squad redirected 33280 | -4/Factory | Identified exit to Extension 33281 | -4/Factory | Entered Extension 33282 | -4/Extension | Loaded intel: 19 trap records 33781 | -4/Extension | First assault squad dispatched 33803 | -4/Extension | Incoming assault squad redirected 34130 | -4/Extension | Rescued a captive Derelict 34131 | -4/Extension | Rescued a captive Derelict 34298 | -4/Extension | Incoming assault squad redirected 34301 | -4/Extension | Incoming assault squad redirected 34305 | -4/Extension | Rescued A7 34337 | -4/Extension | Spotted B-86 Titan 34343 | -4/Extension | Spotted B-86 Titan 34363 | -4/Extension | Extracted ID and sensor layout for unrecognized location from A7's data core 34385 | -4/Extension | Core integrity fell below 50% 34403 | -4/Extension | Destroyed B-86 Titan 34406 | -4/Extension | Disrupted transfer network 34447 | -4/Extension | Destroyed 13 combat bots 34453 | -4/Extension | Lost 7 parts (1p2n1u3w) 34513 | -4/Extension | Destroyed 7 combat bots 34516 | -4/Extension | Lost 3 parts (1p2u) 34646 | -4/Extension | Rescued a captive Derelict 34761 | -4/Extension | Rescued a captive Derelict 34762 | -4/Extension | Rescued a captive Derelict 34817 | -4/Extension | Rescued a captive Derelict 34818 | -4/Extension | Build established: Scavenger-Mutant 34932 | -4/Extension | Rescued a captive Derelict 34985 | -4/Extension | Discovered new exit (range 10) 34988 | -4/Extension | Discovered new exit (range 6) 35010 | -4/Extension | Identified exit to Cetus 35014 | -4/Extension | Entered Cetus 35014 | -4/Cetus | Accompanied by 5 allies 35041 | -4/Cetus | Spotted Cetus Guard 35044 | -4/Cetus | Spotted Cetus Guard 35044 | -4/Cetus | Spotted Cetus Guard 35054 | -4/Cetus | Allies destroyed Cetus Guard 35055 | -4/Cetus | Destroyed Cetus Guard 35056 | -4/Cetus | Spotted Cetus Guard 35058 | -4/Cetus | Destroyed Cetus Guard 35060 | -4/Cetus | Destroyed Cetus Guard 35181 | -4/Cetus | Discovered new exit (range 16) 35206 | -4/Cetus | Identified exit to Archives 35211 | -4/Cetus | Entered Archives 35211 | -4/Archives | Accompanied by 2 allies 35293 | -4/Archives | Unable to access archive contents 35311 | -4/Archives | Unable to access archive contents 35320 | -4/Archives | Discovered new exit (range 13) 35378 | -4/Archives | Discovered new exit (range 14) 35399 | -4/Archives | Identified exit to Hub_04(d) 35439 | -4/Archives | Discovered exit to Hub_04(d) (range 15) 35526 | -4/Archives | Build established: Scavenger-Tank 38190 | -4/Archives | Entered Hub_04(d) 38190 | -4/Hub_04(d) | Accompanied by 1 ally 38554 | -4/Hub_04(d) | Discovered new exit (range 4) 38557 | -4/Hub_04(d) | Identified exit to Research 38673 | -4/Hub_04(d) | Garrison activated, responded to threat 38703 | -4/Hub_04(d) | Network Hub disabled 38706 | -4/Hub_04(d) | Entered Research 38706 | -3/Research | Evolved 2 slots: Utility x2 39005 | -3/Research | Build established: Hauler-Golem 39394 | -3/Research | Identified exit to Research 39805 | -3/Research | Identified Transdimensional Reconstructor 39968 | -3/Research | System corruption reached 10% 40206 | -3/Research | First assault squad dispatched 40393 | -3/Research | Incoming assault squad redirected 40591 | -3/Research | Entered another Research area 40591 | -2/Research | Evolved 2 slots: Utility x2 40707 | -2/Research | Build established: Scavenger-Mutant 40968 | -2/Research | Discovered new exit (range 7) 40977 | -2/Research | Identified exit to Testing 41084 | -2/Research | Build established: Hauler-Mutant 41377 | -2/Research | Discovered new exit (range 5) 41583 | -2/Research | Entered Testing 41589 | -2/Testing | Protovariant out of control (PX-RSDPUWGBKW) 41608 | -2/Testing | Found Portable AFG 41610 | -2/Testing | Garrison activated, responded to threat 41877 | -2/Testing | Build established: Scavenger-Mutant 42027 | -2/Testing | Found Prototype Energy Cannon 42027 | -2/Testing | Identified Disintegrator 42369 | -2/Testing | Protovariant out of control (PH-VL0EF9YHU6) 42369 | -2/Testing | Unleashed a protovariant (PH-VL0EF9YHU6) 42431 | -2/Testing | Incoming assault squad redirected 42492 | -2/Testing | Found Prototype Protection 42492 | -2/Testing | Identified Centrium Heavy Armor Plating 42502 | -2/Testing | Found Centrium Heavy Armor Plating 42562 | -2/Testing | Repaired Hcp. Storage Unit 42596 | -2/Testing | System corruption reached 10% 42651 | -2/Testing | Found Prototype Ballistic Cannon 42651 | -2/Testing | Identified Omega Cannon 42899 | -2/Testing | Scanned by Researcher 42950 | -2/Testing | Build established: Hauler-Mutant 43128 | -2/Testing | Spotted Investigator 43129 | -2/Testing | Destroyed Investigator 43162 | -2/Testing | Found Prototype Protection 43162 | -2/Testing | Identified SHELL Armor 43165 | -2/Testing | Found Prototype Protection 43304 | -2/Testing | Found Prototype Launcher 43304 | -2/Testing | Identified Containment Facilitator 43434 | -2/Testing | Destroyed 12 combat bots 43583 | -2/Testing | First assault squad dispatched 43585 | -2/Testing | Spotted Fortress 43606 | -2/Testing | Incoming assault squad redirected 43607 | -2/Testing | Identified Hvy. Regenerative Plating 43715 | -2/Testing | Discovered new exit (range 6) 43724 | -2/Testing | Entered Section 7 43885 | -2/Section 7 | Found Alien Artifact 43886 | -2/Section 7 | Identified Integrated Reactor 43886 | -2/Section 7 | Installed Integrated Reactor, increased core energy generation (+10) 44008 | -2/Section 7 | First assault squad dispatched 44096 | -2/Section 7 | Scanned by Researcher 44346 | -2/Section 7 | System corruption reached 30% 44522 | -2/Section 7 | Incoming assault squad redirected 44529 | -2/Section 7 | Intercept squad dispatched 44535 | -2/Section 7 | Spotted Tracker 44535 | -2/Section 7 | Spotted Tracker 44553 | -2/Section 7 | Spotted Combat Programmer 44557 | -2/Section 7 | Spotted Combat Programmer 44564 | -2/Section 7 | Destroyed Tracker 44568 | -2/Section 7 | Destroyed Tracker 44599 | -2/Section 7 | Destroyed Combat Programmer 44658 | -2/Section 7 | Warped through subspace 44658 | -2/Section 7 | Spotted Alpha 7 44658 | -2/Section 7 | Spotted Alpha 7 44661 | -2/Section 7 | Released all parts (5) 44668 | -2/Section 7 | Core integrity fell below 50% 44674 | -2/Section 7 | Spotted B-99 Colossus 44686 | -2/Section 7 | Lost 19 parts (2p4n10u3w) 44705 | -2/Section 7 | Found Alien Artifact 44705 | -2/Section 7 | Identified Terrabomb 44705 | -2/Section 7 | Used Terrabomb 44710 | -2/Section 7 | Found Transdimensional Reconstructor 44712 | -2/Section 7 | Found Transdimensional Reconstructor 44720 | -2/Section 7 | Found Alien Artifact 44720 | -2/Section 7 | Identified Matter Drive 44734 | -2/Section 7 | Spotted Striker 44736 | -2/Section 7 | Spotted Striker 44743 | -2/Section 7 | Spotted Executioner 44743 | -2/Section 7 | Spotted Executioner 44748 | -2/Section 7 | Core integrity fell below 20% 44769 | -2/Section 7 | Warped through subspace 44808 | -2/Section 7 | Found Alien Artifact 44851 | -2/Section 7 | Destroyed by H-88 Terminator with KE Penetrator Last Messages --------------- 44752_ Slug penetrates Construction Supplies. 44755_ Machine disabled. 44755_ K-01 Serf cleans the Hull. 44764_ Connecting with Exoskeleton Controls... 44768_ System corrupted: Heat flow error (+133). 44769_ Warped through subspace. 44776_ Penetrated by Slug. 44783_ System corrupted: Matter fused (-7). 44798_ System corrupted: Matter fused (-8). 44805_ Connecting with Door Terminal... >>Open Sealed Heavy Doors opened. 44808_ Acquired Alien Artifact. 44814_ System corrupted: Matter fused (-8). 44829_ System corrupted: Energy discharge (-32). 44845_ System corrupted: Heat flow error (+111). 44847_ Slug penetrates Reinforced Barrier. 44848_ Penetrated by Slug. 44851_ Slug penetrates Reinforced Barrier. 44851_ Penetrated by Slug. Map ----- +----------------------------------------------------+ | ?#""" "??" " ""???????" | | ##""" "?" """ "" "?"""""""" " | | # """""" "?" | | / """"" | | / "" | | / """"" " | | / """?" | | # "?" | | ##"" """"" | | ?#""" | | ?#""" | | ?#"" | | ?#" """""""""" " """""" | | ?# """ """""""" ###"""""""""""""""""" | | ?# """""""""""" #?#"""""""""""""""""" | | ?##################### ###++#?################### | | ?????????????????????# #?# #???????????????????? | | ???????????????????????##?# #???????????????????? | | ??????????????????????????# #???????????????????? | | ??????????????????????????# #??################?? | | ??????????????????????????# #??#"""""" """""?? | | ??????????????????????????# #??#"""""" """""#? | | ??????????????????????????# #??#"""""" "#? | | ???????????????############ #### " """""#? | | ???????????????# h """""#? | | ???????????????# h @ """""#? | | ???????????????# ###############" """""#? | | ???????????##### #?????????????#"" "#? | | ????????####!!!# #####?????????#" " "#? | | ????????#" """"" """"#?????????#"""""""" """ "#? | | ????????#" """#?????????######### #!####? | | ????????#" """#?????????????????# ###???? | | ????????#""""" """#?????????????????# #?????? | | ????????#""""" """#?????????????????# #?????? | | ????????#""""" """#?????????????????# #?????? | | ????????#""""" """#??##############?# #?????? | | ????????#" """"#?#"""""""""""""#?# #?????? | | ????????#""""" """#?#"" """" #?# #?????? | | ????????#""""" """"#?#"" """" #?# #?????? | | ????????######## #####?#"" """" ### #?????? | | ???????????????# #?????#"" """" #?????? | | ???????????????# #?????# #?????? | | ???????????????# #?????# ######?????? | | ???????????????# ####### """" ""#??????????? | | ???????????????# """" ""#??????????? | | ???????????????# """" ""#??????????? | | ???????????????##########" """" ""#??????????? | | ????????????????????????#"""T """"""""#??????????? | | ????????????????????????##### ########???????????? | | ????????????????????????????# #??????????????????? | +----------------------------------------------------+ Best States ------------- Heat Dissipation 100 Coolant Potential 100 Energy Generation 55 Energy Capacity 1600 Matter Stores 500 Matter Capacity 500 Sight Range 16 Robot Scan Range 30 Terrain Scan Range 24 Terrain Scan Density 210 Jamming Range 16 Additional Mass Support 24 EM Shielding 2 Armor Coverage 3000 Resistance: KI 30 Resistance: EM 15 Core Shielding 30 Utility Shielding 90 Weapon Shielding 100 Phase Shifting 15 Evasion (%) 62 Targeting Accuracy 14 Melee Accuracy 6 Target Analysis 5 Recoil Reduction 4 Salvage Targeting 4 Stasis Canceling 2 Offensive Hacking 26 Item Schematics ----------------- Hcp. Storage Unit | -10/Materials | Hacked Lrg. Storage Unit | -10/Mines | Hacked Med. Storage Unit | -10/Mines | Hacked Structural Scanner | -9/Materials | Hacked Imp. Signal Interpreter | -9/Materials | Scanalyzed Gravity Neutralizing Apparatus | -8/Materials | Scanalyzed Exp. ECM Suite | -7/Data Miner | Free Tactical Coordination Suite | -7/Data Miner | Free Exp. Targeting Computer | -7/Data Miner | Free Exp. Terrain Scan Processor | -7/Data Miner | Free Exp. Sensor Array | -7/Data Miner | Free Exp. Cesium-ion Thruster | -7/Data Miner | Free Cmb. Gravmag System | -7/Data Miner | Free Lgt. Regenerative Plating | -7/Data Miner | Free Combat Drone Bay | -7/Data Miner | Free Assault Drone Bay | -5/Zhirov | Free Exp. Heat Sink | -5/Zhirov | Free Exp. Optical Array | -5/Zhirov | Free Imp. Arc Thrower | -5/Zhirov | Free Centrium Heavy Treads | -3/Research | Scanalyzed Med. Regenerative Plating | -2/Testing | Hacked Robot Schematics ------------------ S-27 Virus | -7/Data Miner | Free G-50 Soldier | -7/Data Miner | Free L-41 Fighter | -7/Data Miner | Free H-66 Slayer | -7/Data Miner | Free P-70 Sage | -7/Data Miner | Free I-36 Angel | -7/Data Miner | Free I-47 Archangel | -7/Data Miner | Free Fabricated ------------ Structural Scanner | x2 | -7/Factory Arm. Medium Treads | x2 | -6/Factory | Preloaded Exp. Sensor Array | x1 | -6/Factory Lgt. Regenerative Plating | x1 | -6/Factory Alien Tech Used ----------------- Core Expander Integrated Dissipator Integrated Reactor Transdimensional Reconstructor Terrabomb Matter Drive Achievements -------------- Nope Rampage Shocking Conclusion Treasure Hunter Challenges ------------ None Game ------ Seed FireTacticalMeganuke Manual? 0 Play Time 06:50:03 Cumulative 301.6 hours Start 2021.09.03 @ 16:46:56 End 2021.09.11 @ 18:52:27 Sessions 9 Manual Loads 0 Difficulty Rogue Special Mode None Game No. 299 Rogue 299 Adventurer 0 Explorer 0 Win Type - Total 4 Types 4/0/0/0/0/0/0/0/0 Lore% 64 Gallery% 80 Achievement% 63 Wizard Run 0 Options --------- ASCII 0 Keyboard 0 Movement Numpad Keybinds 0 Fullscreen 2 Font 24/Terminus Map View 76x50 Tactical HUD 1 Map Filters NONE Filters NONE Steam 1 RUN: 193480dd-3932-410b-b9d8-2e0a3dcbdd60